Body Name,Body,Service Division Label,Service Division Code,Organisational Unit,Expenditure Category,Expenditure Code,CIPFA detailed expediture type,CIPFA detailed expediture code,Narrative,Date,Transaction number,Net Amount,Capital and Revenue,Supplier Name,Supplier ID
Chorley Borough Council,http://statistics.data.gov.uk/id/local-authority/30UE,Corporate Management,1008,Policy & Performance,Exhibitions & Special Events,40158,Miscellaneous Expenses,5034,On air advertising and activities in Market Walk for the school holidays,02/09/2015,105774,"2,200.00",Revenue,107 The Bee,51152
Chorley Borough Council,http://statistics.data.gov.uk/id/local-authority/30UE,Economic Development,1096,Economic Development,Exhibitions & Special Events,40158,Miscellaneous Expenses,5034,Speaker at Careers and Jobs Fair on 10th Sept 2015.,16/09/2015,106139,260.00,Revenue,3ManFactory Ltd,70954
Chorley Borough Council,http://statistics.data.gov.uk/id/local-authority/30UE,Central Support Services,1009,Streetscene & Leisure Contracts,Miscellaneous Expenses,40200,Miscellaneous Expenses,5034,Carryout cobbling works to link footpath brake through stone wall and install knee rail at Wheelton Village Hall ,04/09/2015,105830,"3,100.00",Revenue,A Middleton,61789
Chorley Borough Council,http://statistics.data.gov.uk/id/local-authority/30UE,Elections,1012,Governance,Publicity - Advertising,40157,Miscellaneous Expenses,5034,Registration campaign on Argos till receipts during November 2015,18/09/2015,106174,800.00,Revenue,Access Point,67440
Chorley Borough Council,http://statistics.data.gov.uk/id/local-authority/30UE,Democratic Represent and  Mgnt,1007,Streetscene & Leisure Contracts,External Contractor - Trust or Charity,50008,Private Contractors,5042,"Active Nation Monthly Management Fee For the Period April 2015 - March 2016.Monthly Fee to be invoiced ",02/09/2015,105787,"31,211.54",Revenue,Active Nation UK Ltd,17144
Chorley Borough Council,http://statistics.data.gov.uk/id/local-authority/30UE,Central Support Services,1009,Health Environment & Neighbourhoods,Rent/Hire Of Premises,20017,Premises Rents,5007,Hire of facilities on Friday Nights in September for DSC,09/09/2015,105990,406.50,Revenue,Active Nation UK Ltd,17144
Chorley Borough Council,http://statistics.data.gov.uk/id/local-authority/30UE,Service Management & Support,1009,Streetscene & Leisure Contracts,Vehicle Maintenance,30045,Direct Transport Costs,5016,Supply service items and gas struts as per your No 20106553 to also include 40 litres of engine oil,09/09/2015,105874,546.54,Revenue,Aebi Schmidt UK Ltd,17287
Chorley Borough Council,http://statistics.data.gov.uk/id/local-authority/30UE,Unapportionable Central OHeads,1009,"Customer, ICT & Transactional",Uniforms,40039,"Clothing, Uniforms and Laundry",5025,Uniform,25/09/2015,104308,274.73,Revenue,Alexandra RE:MWUK LTD,21752
Chorley Borough Council,http://statistics.data.gov.uk/id/local-authority/30UE,Democratic Represent and  Mgnt,1007,Shared Service Arrangement,Car Leasing Payment,14100,Direct Employee Expenses,5001,Direct Employee Expenses,11/09/2015,105899,"2,750.05",Revenue,Alphabet (Uk) Fleet Management Ltd,16651
Chorley Borough Council,http://statistics.data.gov.uk/id/local-authority/30UE,Democratic Represent and  Mgnt,1007,Shared Service Arrangement,Car Leasing Payment,14100,Direct Employee Expenses,5001,Direct Employee Expenses,11/09/2015,105899,233.59,Revenue,Alphabet (Uk) Fleet Management Ltd,16651
Chorley Borough Council,http://statistics.data.gov.uk/id/local-authority/30UE,Unapportionable Central OHeads,1009,Policy & Performance,Promotional Expenses,40159,Miscellaneous Expenses,5034,Talking bin to promote the Don`t Mess with Chorley campaign,25/09/2015,106354,417.00,Revenue,Amberol,64554
Chorley Borough Council,http://statistics.data.gov.uk/id/local-authority/30UE,Economic Development,1096,Governance,Cleaning Materials,40019,"Equipment, Furniture & Materia",5023,Janitorial products for the covered market toilets.,11/09/2015,105959,379.90,Revenue,Amtoll Ltd,21738
Chorley Borough Council,http://statistics.data.gov.uk/id/local-authority/30UE,Central Support Services,1009,"Customer, ICT & Transactional",Computer Equipment-Maintenance,40105,Communication and Computing,5028,Managed infrastructure contract - April 2015,11/09/2015,102470,"2,000.00",Revenue,ANS Group,22502
Chorley Borough Council,http://statistics.data.gov.uk/id/local-authority/30UE,Central Support Services,1009,"Customer, ICT & Transactional",Computer Equipment-Maintenance,40105,Communication and Computing,5028,Managed infrastructure contract - May 2015,16/09/2015,103184,"2,000.00",Revenue,ANS Group,22502
Chorley Borough Council,http://statistics.data.gov.uk/id/local-authority/30UE,Central Support Services,1009,"Customer, ICT & Transactional",Computer Equipment-Maintenance,40105,Communication and Computing,5028,Managed infrastructure contract - June 2015,16/09/2015,103963,"2,000.00",Revenue,ANS Group,22502
Chorley Borough Council,http://statistics.data.gov.uk/id/local-authority/30UE,Central Support Services,1009,"Customer, ICT & Transactional",Computer Equipment-Maintenance,40105,Communication and Computing,5028,Managed infrastructure contract - July 2015,16/09/2015,104599,"2,000.00",Revenue,ANS Group,22502
Chorley Borough Council,http://statistics.data.gov.uk/id/local-authority/30UE,Central Support Services,1009,"Customer, ICT & Transactional",Computer Equipment-Maintenance,40105,Communication and Computing,5028,Managed infrastructure contract - August 2015,16/09/2015,105322,"2,000.00",Revenue,ANS Group,22502
Chorley Borough Council,http://statistics.data.gov.uk/id/local-authority/30UE,Central Support Services,1009,"Customer, ICT & Transactional",Computer Equipment-Maintenance,40105,Communication and Computing,5028,Managed infrastructure contract - September 2015,23/09/2015,105818,"2,000.00",Revenue,ANS Group,22502
Chorley Borough Council,http://statistics.data.gov.uk/id/local-authority/30UE,Unapportionable Central OHeads,1009,"Customer, ICT & Transactional",Computer Equipment-Maintenance,40105,Communication and Computing,5028,Managed infrastructure contract - February 2015,16/09/2015,106121,"2,000.00",Revenue,ANS Group,22502
Chorley Borough Council,http://statistics.data.gov.uk/id/local-authority/30UE,Unapportionable Central OHeads,1009,"Customer, ICT & Transactional",Computer Equipment-Maintenance,40105,Communication and Computing,5028,Managed infrastructure contract - September 2014,16/09/2015,106122,"2,000.00",Revenue,ANS Group,22502
Chorley Borough Council,http://statistics.data.gov.uk/id/local-authority/30UE,Unapportionable Central OHeads,1009,"Customer, ICT & Transactional",Computer Equipment-Maintenance,40105,Communication and Computing,5028,Managed infrastructure contract - March 2015,16/09/2015,106123,"2,000.00",Revenue,ANS Group,22502
Chorley Borough Council,http://statistics.data.gov.uk/id/local-authority/30UE,Unapportionable Central OHeads,1009,"Customer, ICT & Transactional",Computer Equipment-Maintenance,40105,Communication and Computing,5028,Managed infrastructure contract - January 2015,16/09/2015,106124,"2,000.00",Revenue,ANS Group,22502
Chorley Borough Council,http://statistics.data.gov.uk/id/local-authority/30UE,Unapportionable Central OHeads,1009,"Customer, ICT & Transactional",Computer Equipment-Maintenance,40105,Communication and Computing,5028,Managed infrastructure contract - December 2014,16/09/2015,106125,"2,000.00",Revenue,ANS Group,22502
Chorley Borough Council,http://statistics.data.gov.uk/id/local-authority/30UE,Unapportionable Central OHeads,1009,"Customer, ICT & Transactional",Computer Equipment-Maintenance,40105,Communication and Computing,5028,Managed infrastructure contract - October 2014,16/09/2015,106126,"2,000.00",Revenue,ANS Group,22502
Chorley Borough Council,http://statistics.data.gov.uk/id/local-authority/30UE,Unapportionable Central OHeads,1009,"Customer, ICT & Transactional",Computer Equipment-Maintenance,40105,Communication and Computing,5028,Managed infrastructure contract - November 2014,16/09/2015,106127,"2,000.00",Revenue,ANS Group,22502
Chorley Borough Council,http://statistics.data.gov.uk/id/local-authority/30UE,Service Management & Support,1009,Streetscene & Leisure Contracts,External Contractor,40198,Miscellaneous Expenses,5034,Carryout verti draining to approx. 5 x football pitches as per your quotation No Q1303. works within the next 2 weeks,11/09/2015,105856,"1,395.00",Revenue,AP Broom Landscapes,67257
Chorley Borough Council,http://statistics.data.gov.uk/id/local-authority/30UE,Service Management & Support,1009,Streetscene & Leisure Contracts,External Contractor,40198,Miscellaneous Expenses,5034,Supply and install approx 43metres of  chain link fencing 1.8metre at Abbey Village play area as per your quote,30/09/2015,105884,"1,895.00",Revenue,AP Broom Landscapes,67257
Chorley Borough Council,http://statistics.data.gov.uk/id/local-authority/30UE,Service Management & Support,1009,Streetscene & Leisure Contracts,Supplies-Grounds Maintenance,40025,"Equipment, Furniture & Materia",5023,"2 benches with backs, with legs long enough to be concreted into the ground, installation tarmac around the bowling green",23/09/2015,106173,390.00,Revenue,Ark Welding Ltd,18154
Chorley Borough Council,http://statistics.data.gov.uk/id/local-authority/30UE,Service Management & Support,1009,Streetscene & Leisure Contracts,Supplies-Grounds Maintenance,40025,"Equipment, Furniture & Materia",5023,Carryout major structural repairs to skate board ramp at Tatton ground as requested,30/09/2015,106393,"1,150.00",Revenue,Ark Welding Ltd,18154
Chorley Borough Council,http://statistics.data.gov.uk/id/local-authority/30UE,Service Management & Support,1009,Streetscene & Leisure Contracts,Supplies-Grounds Maintenance,40025,"Equipment, Furniture & Materia",5023,Manufacture and supply memorial benches as requested,30/09/2015,106395,390.00,Revenue,Ark Welding Ltd,18154
Chorley Borough Council,http://statistics.data.gov.uk/id/local-authority/30UE,Service Management & Support,1009,Streetscene & Leisure Contracts,Tools & Equipment - Maintenance,40005,"Equipment, Furniture & Materia",5023,Remove and replace trailer floor as required,30/09/2015,106397,495.00,Revenue,Ark Welding Ltd,18154
Chorley Borough Council,http://statistics.data.gov.uk/id/local-authority/30UE,Unapportionable Central OHeads,1009,Shared Service Arrangement,Car Leasing Payment,14100,Direct Employee Expenses,5001,Direct Employee Expenses,11/09/2015,105593,"3,228.00",Revenue,Arnold Clark Finance Ltd,20685
Chorley Borough Council,http://statistics.data.gov.uk/id/local-authority/30UE,Unapportionable Central OHeads,1009,Shared Service Arrangement,Car Leasing Payment,14100,Direct Employee Expenses,5001,Direct Employee Expenses,11/09/2015,105593,264.15,Revenue,Arnold Clark Finance Ltd,20685
Chorley Borough Council,http://statistics.data.gov.uk/id/local-authority/30UE,Democratic Represent and  Mgnt,1007,Shared Service Arrangement,Car Leasing Payment,14100,Direct Employee Expenses,5001,Direct Employee Expenses,11/09/2015,105593,"3,636.00",Revenue,Arnold Clark Finance Ltd,20685
Chorley Borough Council,http://statistics.data.gov.uk/id/local-authority/30UE,Democratic Represent and  Mgnt,1007,Shared Service Arrangement,Car Leasing Payment,14100,Direct Employee Expenses,5001,Direct Employee Expenses,11/09/2015,105593,312.99,Revenue,Arnold Clark Finance Ltd,20685
Chorley Borough Council,http://statistics.data.gov.uk/id/local-authority/30UE,Unapportionable Central OHeads,1009,Shared Service Arrangement,Car Leasing Payment,14100,Direct Employee Expenses,5001,Direct Employee Expenses,11/09/2015,105594,"2,112.00",Revenue,Arnold Clark Finance Ltd,20685
Chorley Borough Council,http://statistics.data.gov.uk/id/local-authority/30UE,Unapportionable Central OHeads,1009,Shared Service Arrangement,Car Leasing Payment,14100,Direct Employee Expenses,5001,Direct Employee Expenses,11/09/2015,105594,180.64,Revenue,Arnold Clark Finance Ltd,20685
Chorley Borough Council,http://statistics.data.gov.uk/id/local-authority/30UE,Service Management & Support,1009,Shared Service Arrangement,Car Leasing Payment,14100,Direct Employee Expenses,5001,Direct Employee Expenses,11/09/2015,105596,"2,520.12",Revenue,Arnold Clark Finance Ltd,20685
Chorley Borough Council,http://statistics.data.gov.uk/id/local-authority/30UE,Service Management & Support,1009,Shared Service Arrangement,Car Leasing Payment,14100,Direct Employee Expenses,5001,Direct Employee Expenses,11/09/2015,105596,202.48,Revenue,Arnold Clark Finance Ltd,20685
Chorley Borough Council,http://statistics.data.gov.uk/id/local-authority/30UE,Central Support Services,1009,Shared Service Arrangement,Car Leasing Payment,14100,Direct Employee Expenses,5001,Direct Employee Expenses,11/09/2015,105809,261.00,Revenue,Arnold Clark Finance Ltd,20685
Chorley Borough Council,http://statistics.data.gov.uk/id/local-authority/30UE,Central Support Services,1009,Shared Service Arrangement,Car Leasing Payment,14100,Direct Employee Expenses,5001,Direct Employee Expenses,11/09/2015,105809,23.41,Revenue,Arnold Clark Finance Ltd,20685
Chorley Borough Council,http://statistics.data.gov.uk/id/local-authority/30UE,Unapportionable Central OHeads,1009,Shared Service Arrangement,Car Leasing Payment,14100,Direct Employee Expenses,5001,Direct Employee Expenses,11/09/2015,105809,240.00,Revenue,Arnold Clark Finance Ltd,20685
Chorley Borough Council,http://statistics.data.gov.uk/id/local-authority/30UE,Unapportionable Central OHeads,1009,Shared Service Arrangement,Car Leasing Payment,14100,Direct Employee Expenses,5001,Direct Employee Expenses,11/09/2015,105809,21.65,Revenue,Arnold Clark Finance Ltd,20685
Chorley Borough Council,http://statistics.data.gov.uk/id/local-authority/30UE,Development Control,1091,Shared Service Arrangement,Car Leasing Payment,14100,Direct Employee Expenses,5001,Direct Employee Expenses,11/09/2015,105809,205.00,Revenue,Arnold Clark Finance Ltd,20685
Chorley Borough Council,http://statistics.data.gov.uk/id/local-authority/30UE,Development Control,1091,Shared Service Arrangement,Car Leasing Payment,14100,Direct Employee Expenses,5001,Direct Employee Expenses,11/09/2015,105809,17.92,Revenue,Arnold Clark Finance Ltd,20685
Chorley Borough Council,http://statistics.data.gov.uk/id/local-authority/30UE,Unapportionable Central OHeads,1009,Shared Service Arrangement,Car Leasing Payment,14100,Direct Employee Expenses,5001,Direct Employee Expenses,11/09/2015,105809,292.00,Revenue,Arnold Clark Finance Ltd,20685
Chorley Borough Council,http://statistics.data.gov.uk/id/local-authority/30UE,Unapportionable Central OHeads,1009,Shared Service Arrangement,Car Leasing Payment,14100,Direct Employee Expenses,5001,Direct Employee Expenses,11/09/2015,105809,27.37,Revenue,Arnold Clark Finance Ltd,20685
Chorley Borough Council,http://statistics.data.gov.uk/id/local-authority/30UE,Unapportionable Central OHeads,1009,Shared Service Arrangement,Car Leasing Payment,14100,Direct Employee Expenses,5001,Direct Employee Expenses,18/09/2015,105904,"3,049.68",Revenue,Arnold Clark Finance Ltd,20685
Chorley Borough Council,http://statistics.data.gov.uk/id/local-authority/30UE,Unapportionable Central OHeads,1009,Shared Service Arrangement,Car Leasing Payment,14100,Direct Employee Expenses,5001,Direct Employee Expenses,18/09/2015,105904,304.97,Revenue,Arnold Clark Finance Ltd,20685
Chorley Borough Council,http://statistics.data.gov.uk/id/local-authority/30UE,Democratic Represent and  Mgnt,1007,Streetscene & Leisure Contracts,Protective Clothing,40040,"Clothing, Uniforms and Laundry",5025,"10 pairs of green Reggata tousers. 1 @ 38/29 1 @ 36/312 @ 36/292 @ 34/311 @34/291 @ 32/312 @32/29",09/09/2015,105772,155.00,Revenue,Asterisk Direct Limited,18676
Chorley Borough Council,http://statistics.data.gov.uk/id/local-authority/30UE,Democratic Represent and  Mgnt,1007,Streetscene & Leisure Contracts,Protective Clothing,40040,"Clothing, Uniforms and Laundry",5025,"Green polo shirts with Chorley logo and Volunteer. @ XL2 @ L6 @M1 Me.",09/09/2015,105772,99.00,Revenue,Asterisk Direct Limited,18676
Chorley Borough Council,http://statistics.data.gov.uk/id/local-authority/30UE,Democratic Represent and  Mgnt,1007,Streetscene & Leisure Contracts,Protective Clothing,40040,"Clothing, Uniforms and Laundry",5025,"Green Sweatshirts with Chorley logo and Volunteer. 2 @ XL4 @ L6 @ M1 Me",09/09/2015,105772,150.93,Revenue,Asterisk Direct Limited,18676
Chorley Borough Council,http://statistics.data.gov.uk/id/local-authority/30UE,Service Management & Support,1009,Streetscene & Leisure Contracts,Supplies - Workshop,40246,"Equipment, Furniture & Materia",5023,Supply items as on Advice note number 176729 already supplied for John Deere 3036 tractor,02/09/2015,105767,311.98,Revenue,Balmers Garden Machinery,17075
Chorley Borough Council,http://statistics.data.gov.uk/id/local-authority/30UE,Central Support Services,1009,Health Environment & Neighbourhoods,Miscellaneous Expenses,40200,Miscellaneous Expenses,5034,Improvement works and extension to Harding Street Car Park Adlington JULY 2015. Neighbourhood Project. ,02/09/2015,105701,"28,072.79",Revenue,Barton Grange Landscapes,20117
Chorley Borough Council,http://statistics.data.gov.uk/id/local-authority/30UE,Central Support Services,1009,Health Environment & Neighbourhoods,Tools & Equipment - Maintenance,40005,"Equipment, Furniture & Materia",5023,maint cctv,04/09/2015,105538,377.92,Revenue,Baydale Control Systems,21154
Chorley Borough Council,http://statistics.data.gov.uk/id/local-authority/30UE,Central Support Services,1009,Health Environment & Neighbourhoods,Tools & Equipment - Maintenance,40005,"Equipment, Furniture & Materia",5023,astley,30/09/2015,105810,819.89,Revenue,Baydale Control Systems,21154
Chorley Borough Council,http://statistics.data.gov.uk/id/local-authority/30UE,Central Support Services,1009,Health Environment & Neighbourhoods,Tools & Equipment - Maintenance,40005,"Equipment, Furniture & Materia",5023,Maintenance of CCTV,30/09/2015,105843,932.88,Revenue,Baydale Control Systems,21154
Chorley Borough Council,http://statistics.data.gov.uk/id/local-authority/30UE,Unapportionable Central OHeads,1009,"Customer, ICT & Transactional",Consultants` Fees,40077,Services,5027,"Support as agreed with Customer, Transactional and ICT services 3 days a week.",23/09/2015,106032,"1,950.00",Revenue,REDACTED PERSONAL DATA,22238
Chorley Borough Council,http://statistics.data.gov.uk/id/local-authority/30UE,Unapportionable Central OHeads,1009,Governance,Asset Maintenance Fund,20012,Repairs Maintenance & Alts,5005,Re-decoration of Leader/CE/PA offices.,25/09/2015,106289,"3,525.80",Revenue,Bell Decorating Group Limited,55552
Chorley Borough Council,http://statistics.data.gov.uk/id/local-authority/30UE,Democratic Represent and  Mgnt,1007,Streetscene & Leisure Contracts,Supplies-Grounds Maintenance,40025,"Equipment, Furniture & Materia",5023,"Temporary fencing for Chorley Flower Show event inc. install/dismantle, FLT hire transport - anti climb fencing & bar barriers",02/09/2015,105753,642.00,Revenue,Blok`N`Mesh UK Limited,58305
Chorley Borough Council,http://statistics.data.gov.uk/id/local-authority/30UE,Democratic Represent and  Mgnt,1007,Streetscene & Leisure Contracts,Supplies-Grounds Maintenance,40025,"Equipment, Furniture & Materia",5023,Temporary fencing,04/09/2015,105754,310.00,Revenue,Blok`N`Mesh UK Limited,58305
Chorley Borough Council,http://statistics.data.gov.uk/id/local-authority/30UE,Democratic Represent and  Mgnt,1007,Streetscene & Leisure Contracts,Supplies-Grounds Maintenance,40025,"Equipment, Furniture & Materia",5023,"Temporary fencing for Chorley Flower Show event inc. install/dismantle, FLT hire transport - anti climb fencing & bar barriers",09/09/2015,105819,"4,189.75",Revenue,Blok`N`Mesh UK Limited,58305
Chorley Borough Council,http://statistics.data.gov.uk/id/local-authority/30UE,Central Support Services,1009,Health Environment & Neighbourhoods,Play Events,40181,Miscellaneous Expenses,5034,Punch and Judy on Wed 26th August Playtime in the Park,04/09/2015,105752,260.00,Revenue,Brian Gore,18370
Chorley Borough Council,http://statistics.data.gov.uk/id/local-authority/30UE,Central Support Services,1009,Health Environment & Neighbourhoods,Miscellaneous Expenses,40200,Miscellaneous Expenses,5034,Payment for agreed partnership programme 2015/16,23/09/2015,106296,"20,000.00",Revenue,British Cycling,60923
Chorley Borough Council,http://statistics.data.gov.uk/id/local-authority/30UE,Homelessness,1075,Governance,Gas,20014,Energy Costs,5006,Cotswold House,25/09/2015,105541,"10,533.39",Revenue,British Gas Business,22242
Chorley Borough Council,http://statistics.data.gov.uk/id/local-authority/30UE,Democratic Represent and  Mgnt,1007,Governance,Gas,20014,Energy Costs,5006,Coach House,25/09/2015,105541,65.79,Revenue,British Gas Business,22242
Chorley Borough Council,http://statistics.data.gov.uk/id/local-authority/30UE,Community Development,1097,Governance,Gas,20014,Energy Costs,5006,gas,25/09/2015,105541,12.08,Revenue,British Gas Business,22242
Chorley Borough Council,http://statistics.data.gov.uk/id/local-authority/30UE,Unapportionable Central OHeads,1009,Governance,Gas,20014,Energy Costs,5006,bengal;,25/09/2015,105541,22.63,Revenue,British Gas Business,22242
Chorley Borough Council,http://statistics.data.gov.uk/id/local-authority/30UE,Democratic Represent and  Mgnt,1007,Governance,Gas,20014,Energy Costs,5006,astley cottage,25/09/2015,105541,34.58,Revenue,British Gas Business,22242
Chorley Borough Council,http://statistics.data.gov.uk/id/local-authority/30UE,Democratic Represent and  Mgnt,1007,Governance,Gas,20014,Energy Costs,5006,clayton brook,25/09/2015,105541,15.80,Revenue,British Gas Business,22242
Chorley Borough Council,http://statistics.data.gov.uk/id/local-authority/30UE,Democratic Represent and  Mgnt,1007,Governance,Gas,20014,Energy Costs,5006,astley comm,25/09/2015,105541,36.72,Revenue,British Gas Business,22242
Chorley Borough Council,http://statistics.data.gov.uk/id/local-authority/30UE,Democratic Represent and  Mgnt,1007,Governance,Gas,20014,Energy Costs,5006,farm house,25/09/2015,105541,14.94,Revenue,British Gas Business,22242
Chorley Borough Council,http://statistics.data.gov.uk/id/local-authority/30UE,Democratic Represent and  Mgnt,1007,Governance,Gas,20014,Energy Costs,5006,eaves green,25/09/2015,105541,33.70,Revenue,British Gas Business,22242
Chorley Borough Council,http://statistics.data.gov.uk/id/local-authority/30UE,Unapportionable Central OHeads,1009,Governance,Gas,20014,Energy Costs,5006,union street,25/09/2015,105541,586.29,Revenue,British Gas Business,22242
Chorley Borough Council,http://statistics.data.gov.uk/id/local-authority/30UE,Democratic Represent and  Mgnt,1007,Governance,Gas,20014,Energy Costs,5006,astley hall,25/09/2015,105541,207.17,Revenue,British Gas Business,22242
Chorley Borough Council,http://statistics.data.gov.uk/id/local-authority/30UE,Unapportionable Central OHeads,1009,Governance,Gas,20014,Energy Costs,5006,town hall,25/09/2015,105541,79.59,Revenue,British Gas Business,22242
Chorley Borough Council,http://statistics.data.gov.uk/id/local-authority/30UE,Homelessness,1075,Governance,Gas,20014,Energy Costs,5006,cotswold house,30/09/2015,106425,183.43,Revenue,British Gas Business,22242
Chorley Borough Council,http://statistics.data.gov.uk/id/local-authority/30UE,Democratic Represent and  Mgnt,1007,Governance,Gas,20014,Energy Costs,5006,coach house,30/09/2015,106425,30.67,Revenue,British Gas Business,22242
Chorley Borough Council,http://statistics.data.gov.uk/id/local-authority/30UE,Community Development,1097,Governance,Gas,20014,Energy Costs,5006,accounting,30/09/2015,106425,238.92,Revenue,British Gas Business,22242
Chorley Borough Council,http://statistics.data.gov.uk/id/local-authority/30UE,Unapportionable Central OHeads,1009,Governance,Gas,20014,Energy Costs,5006,bengal street,30/09/2015,106425,17.33,Revenue,British Gas Business,22242
Chorley Borough Council,http://statistics.data.gov.uk/id/local-authority/30UE,Democratic Represent and  Mgnt,1007,Governance,Gas,20014,Energy Costs,5006,astley cottage,30/09/2015,106425,3.38,Revenue,British Gas Business,22242
Chorley Borough Council,http://statistics.data.gov.uk/id/local-authority/30UE,Democratic Represent and  Mgnt,1007,Governance,Gas,20014,Energy Costs,5006,clayton brook comm,30/09/2015,106425,8.88,Revenue,British Gas Business,22242
Chorley Borough Council,http://statistics.data.gov.uk/id/local-authority/30UE,Democratic Represent and  Mgnt,1007,Governance,Gas,20014,Energy Costs,5006,astley village comm,30/09/2015,106425,106.09,Revenue,British Gas Business,22242
Chorley Borough Council,http://statistics.data.gov.uk/id/local-authority/30UE,Democratic Represent and  Mgnt,1007,Governance,Gas,20014,Energy Costs,5006,astley hall farmhouse,30/09/2015,106425,212.83,Revenue,British Gas Business,22242
Chorley Borough Council,http://statistics.data.gov.uk/id/local-authority/30UE,Democratic Represent and  Mgnt,1007,Governance,Gas,20014,Energy Costs,5006,eaves green comm,30/09/2015,106425,98.48,Revenue,British Gas Business,22242
Chorley Borough Council,http://statistics.data.gov.uk/id/local-authority/30UE,Unapportionable Central OHeads,1009,Governance,Gas,20014,Energy Costs,5006,union street,30/09/2015,106425,504.75,Revenue,British Gas Business,22242
Chorley Borough Council,http://statistics.data.gov.uk/id/local-authority/30UE,Democratic Represent and  Mgnt,1007,Governance,Gas,20014,Energy Costs,5006,astley hall,30/09/2015,106425,463.29,Revenue,British Gas Business,22242
Chorley Borough Council,http://statistics.data.gov.uk/id/local-authority/30UE,Unapportionable Central OHeads,1009,Governance,Gas,20014,Energy Costs,5006,town hall,30/09/2015,106425,15.60,Revenue,British Gas Business,22242
Chorley Borough Council,http://statistics.data.gov.uk/id/local-authority/30UE,Democratic Represent and  Mgnt,1007,Health Environment & Neighbourhoods,Grants To Other Organisations,40127,Grants and Subscriptions,5031,s106grant,30/09/2015,100554,"3,582.00",Revenue,Buckshaw Village Community Centre,47989
Chorley Borough Council,http://statistics.data.gov.uk/id/local-authority/30UE,Service Management & Support,1009,Streetscene & Leisure Contracts,Supplies-Grounds Maintenance,40025,"Equipment, Furniture & Materia",5023,Highway C2 fast setting mortar. 25kg bag. Product Code = 02110551,04/09/2015,105775,412.00,Revenue,C & W BERRY LIMITED,18180
Chorley Borough Council,http://statistics.data.gov.uk/id/local-authority/30UE,Service Management & Support,1009,Streetscene & Leisure Contracts,External Contractor,40198,Miscellaneous Expenses,5034,Carryout monthly emptying of interceptor tank and gullies at Bengal St depot at price agreed,02/09/2015,105653,300.00,Revenue,C J Lyon,16579
Chorley Borough Council,http://statistics.data.gov.uk/id/local-authority/30UE,Service Management & Support,1009,Streetscene & Leisure Contracts,External Contractor,40198,Miscellaneous Expenses,5034,Carryout monthly emptying of interceptor tank and gullies at Bengal St depot at price agreed,18/09/2015,105982,300.00,Revenue,C J Lyon,16579
Chorley Borough Council,http://statistics.data.gov.uk/id/local-authority/30UE,Service Management & Support,1009,Streetscene & Leisure Contracts,Vehicle Maintenance,30045,Direct Transport Costs,5016,Callout to none starting of DK07LDE supply and fit new starter motor and ring gear as needed,04/09/2015,105822,855.70,Revenue,C P Davidson & Sons Ltd,21093
Chorley Borough Council,http://statistics.data.gov.uk/id/local-authority/30UE,Service Management & Support,1009,Streetscene & Leisure Contracts,Vehicle Maintenance,30045,Direct Transport Costs,5016,Carryout FTA repairs as requested as on invoice number W47743,04/09/2015,105823,910.26,Revenue,C P Davidson & Sons Ltd,21093
Chorley Borough Council,http://statistics.data.gov.uk/id/local-authority/30UE,Service Management & Support,1009,Streetscene & Leisure Contracts,Vehicle Maintenance,30045,Direct Transport Costs,5016,Carryout pre MOT inspection and service on DK55EEF and take for annual test as required Has on W47994,30/09/2015,106454,345.42,Revenue,C P Davidson & Sons Ltd,21093
Chorley Borough Council,http://statistics.data.gov.uk/id/local-authority/30UE,Business Support,1095,Economic Development,Grants To Other Organisations,40127,Grants and Subscriptions,5031,Business rate subsidy 2nd tranche,09/09/2015,105857,866.25,Revenue,Cakes by Ruth,57311
Chorley Borough Council,http://statistics.data.gov.uk/id/local-authority/30UE,Unapportionable Central OHeads,1009,"Customer, ICT & Transactional",Emergency Call Out System,40096,Communication and Computing,5028,Out of hours call charges August 2015,16/09/2015,105920,447.40,Revenue,CallCare Ltd,20257
Chorley Borough Council,http://statistics.data.gov.uk/id/local-authority/30UE,Unapportionable Central OHeads,1009,"Customer, ICT & Transactional",Emergency Call Out System,40096,Communication and Computing,5028,Out of hours standing charge October 2015,16/09/2015,105920,120.00,Revenue,CallCare Ltd,20257
Chorley Borough Council,http://statistics.data.gov.uk/id/local-authority/30UE,Unapportionable Central OHeads,1009,Policy & Performance,Exhibitions & Special Events,40158,Miscellaneous Expenses,5034,Performance of Robin Hood the Musical for Theatre in the park event,25/09/2015,106195,750.00,Revenue,Cambridge Touring Theatre,71886
Chorley Borough Council,http://statistics.data.gov.uk/id/local-authority/30UE,Unapportionable Central OHeads,1009,Policy & Performance,Exhibitions & Special Events,40158,Miscellaneous Expenses,5034,deposit,25/09/2015,106196,750.00,Revenue,Cambridge Touring Theatre,71886
Chorley Borough Council,http://statistics.data.gov.uk/id/local-authority/30UE,Democratic Represent and  Mgnt,1007,Governance,Mayoral Hospitality,40123,Expenses,5030,Catering at Mayor`s Charity Luncheon on Friday 11th September 2015. 21 places at 18 per head and 2 attendants,16/09/2015,106117,338.25,Revenue,Camerons Restaurant Ltd,53731
Chorley Borough Council,http://statistics.data.gov.uk/id/local-authority/30UE,Democratic Represent and  Mgnt,1007,Governance,Refuse Collection,20037,Cleaning and Domestic Supplies,5012,Refuse,16/09/2015,106088,8.97,Revenue,Cannon Hygiene Limited,18158
Chorley Borough Council,http://statistics.data.gov.uk/id/local-authority/30UE,Unapportionable Central OHeads,1009,Governance,Refuse Collection,20037,Cleaning and Domestic Supplies,5012,Refuse,16/09/2015,106088,69.96,Revenue,Cannon Hygiene Limited,18158
Chorley Borough Council,http://statistics.data.gov.uk/id/local-authority/30UE,Homelessness,1075,Governance,Refuse Collection,20037,Cleaning and Domestic Supplies,5012,Refuse,16/09/2015,106088,25.47,Revenue,Cannon Hygiene Limited,18158
Chorley Borough Council,http://statistics.data.gov.uk/id/local-authority/30UE,Corporate Management,1008,Governance,Refuse Collection,20037,Cleaning and Domestic Supplies,5012,Refuse,16/09/2015,106088,240.90,Revenue,Cannon Hygiene Limited,18158
Chorley Borough Council,http://statistics.data.gov.uk/id/local-authority/30UE,Democratic Represent and  Mgnt,1007,Governance,Refuse Collection,20037,Cleaning and Domestic Supplies,5012,Refuse,16/09/2015,106088,54.09,Revenue,Cannon Hygiene Limited,18158
Chorley Borough Council,http://statistics.data.gov.uk/id/local-authority/30UE,Democratic Represent and  Mgnt,1007,Governance,Refuse Collection,20037,Cleaning and Domestic Supplies,5012,Refuse,16/09/2015,106088,15.87,Revenue,Cannon Hygiene Limited,18158
Chorley Borough Council,http://statistics.data.gov.uk/id/local-authority/30UE,Corporate Management,1008,Governance,Refuse Collection,20037,Cleaning and Domestic Supplies,5012,Refuse,16/09/2015,106088,230.52,Revenue,Cannon Hygiene Limited,18158
Chorley Borough Council,http://statistics.data.gov.uk/id/local-authority/30UE,Unapportionable Central OHeads,1009,Governance,Refuse Collection,20037,Cleaning and Domestic Supplies,5012,Refuse,16/09/2015,106088,25.23,Revenue,Cannon Hygiene Limited,18158
Chorley Borough Council,http://statistics.data.gov.uk/id/local-authority/30UE,Unapportionable Central OHeads,1009,Governance,Refuse Collection,20037,Cleaning and Domestic Supplies,5012,Refuse,16/09/2015,106088,18.99,Revenue,Cannon Hygiene Limited,18158
Chorley Borough Council,http://statistics.data.gov.uk/id/local-authority/30UE,Unapportionable Central OHeads,1009,Governance,Refuse Collection,20037,Cleaning and Domestic Supplies,5012,Refuse,16/09/2015,106088,53.31,Revenue,Cannon Hygiene Limited,18158
Chorley Borough Council,http://statistics.data.gov.uk/id/local-authority/30UE,Democratic Represent and  Mgnt,1007,Governance,Refuse Collection,20037,Cleaning and Domestic Supplies,5012,Refuse,18/09/2015,106089,9.63,Revenue,Cannon Hygiene Limited,18158
Chorley Borough Council,http://statistics.data.gov.uk/id/local-authority/30UE,Unapportionable Central OHeads,1009,Governance,Refuse Collection,20037,Cleaning and Domestic Supplies,5012,Refuse,18/09/2015,106089,88.65,Revenue,Cannon Hygiene Limited,18158
Chorley Borough Council,http://statistics.data.gov.uk/id/local-authority/30UE,Homelessness,1075,Governance,Refuse Collection,20037,Cleaning and Domestic Supplies,5012,Refuse,18/09/2015,106089,27.18,Revenue,Cannon Hygiene Limited,18158
Chorley Borough Council,http://statistics.data.gov.uk/id/local-authority/30UE,Corporate Management,1008,Governance,Refuse Collection,20037,Cleaning and Domestic Supplies,5012,Refuse,18/09/2015,106089,255.57,Revenue,Cannon Hygiene Limited,18158
Chorley Borough Council,http://statistics.data.gov.uk/id/local-authority/30UE,Democratic Represent and  Mgnt,1007,Governance,Refuse Collection,20037,Cleaning and Domestic Supplies,5012,Refuse,18/09/2015,106089,57.72,Revenue,Cannon Hygiene Limited,18158
Chorley Borough Council,http://statistics.data.gov.uk/id/local-authority/30UE,Democratic Represent and  Mgnt,1007,Governance,Refuse Collection,20037,Cleaning and Domestic Supplies,5012,Refuse,18/09/2015,106089,16.92,Revenue,Cannon Hygiene Limited,18158
Chorley Borough Council,http://statistics.data.gov.uk/id/local-authority/30UE,Corporate Management,1008,Governance,Refuse Collection,20037,Cleaning and Domestic Supplies,5012,Refuse,18/09/2015,106089,244.92,Revenue,Cannon Hygiene Limited,18158
Chorley Borough Council,http://statistics.data.gov.uk/id/local-authority/30UE,Unapportionable Central OHeads,1009,Governance,Refuse Collection,20037,Cleaning and Domestic Supplies,5012,Refuse,18/09/2015,106089,27.06,Revenue,Cannon Hygiene Limited,18158
Chorley Borough Council,http://statistics.data.gov.uk/id/local-authority/30UE,Unapportionable Central OHeads,1009,Governance,Refuse Collection,20037,Cleaning and Domestic Supplies,5012,Refuse,18/09/2015,106089,20.28,Revenue,Cannon Hygiene Limited,18158
Chorley Borough Council,http://statistics.data.gov.uk/id/local-authority/30UE,Unapportionable Central OHeads,1009,Governance,Refuse Collection,20037,Cleaning and Domestic Supplies,5012,Refuse,18/09/2015,106089,56.43,Revenue,Cannon Hygiene Limited,18158
Chorley Borough Council,http://statistics.data.gov.uk/id/local-authority/30UE,Economic Development,1096,Governance,Fixtures & Fittings - Purchase,20027,Fixtures and Fittings,5010,Refuse,18/09/2015,106089,320.58,Revenue,Cannon Hygiene Limited,18158
Chorley Borough Council,http://statistics.data.gov.uk/id/local-authority/30UE,Democratic Represent and  Mgnt,1007,Governance,Refuse Collection,20037,Cleaning and Domestic Supplies,5012,Refuse,18/09/2015,106089,104.49,Revenue,Cannon Hygiene Limited,18158
Chorley Borough Council,http://statistics.data.gov.uk/id/local-authority/30UE,Unapportionable Central OHeads,1009,"Customer, ICT & Transactional",Photocopier Charges,40047,"Printing, Stationery & General",5026,,23/09/2015,106212,"1,898.00",Revenue,Canon (UK) Ltd,17492
Chorley Borough Council,http://statistics.data.gov.uk/id/local-authority/30UE,Corporate Management,1008,Shared Service Arrangement,Treasury Management Service,40065,Services,5027,treasury service,11/09/2015,105789,"7,100.00",Revenue,Capita Treasury Solutions Ltd,16428
Chorley Borough Council,http://statistics.data.gov.uk/id/local-authority/30UE,Unapportionable Central OHeads,1009,Governance,General Repairs - Reactive,20004,Repairs Maintenance & Alts,5005,Reactive blanket order until September 2015.,25/09/2015,106266,"5,160.00",Revenue,Castle mount Contracts Ltd,66621
Chorley Borough Council,http://statistics.data.gov.uk/id/local-authority/30UE,Service Management & Support,1009,Streetscene & Leisure Contracts,Miscellaneous Expenses,40200,Miscellaneous Expenses,5034,payment of prize money for Chorley FlowerShow,11/09/2015,105359,400.00,Revenue,Caths Garden Plants,71498
Chorley Borough Council,http://statistics.data.gov.uk/id/local-authority/30UE,Central Support Services,1009,Health Environment & Neighbourhoods,Miscellaneous Expenses,40200,Miscellaneous Expenses,5034,Meetings relating to CCTV project,23/09/2015,106306,327.00,Revenue,CCTV Services Limited,71330
Chorley Borough Council,http://statistics.data.gov.uk/id/local-authority/30UE,Central Support Services,1009,Health Environment & Neighbourhoods,Miscellaneous Expenses,40200,Miscellaneous Expenses,5034,Reference Assessment and Quality scoring for CCTV contract,23/09/2015,106307,"1,975.63",Revenue,CCTV Services Limited,71330
Chorley Borough Council,http://statistics.data.gov.uk/id/local-authority/30UE,Business Support,1095,Economic Development,Miscellaneous Expenses,40200,Miscellaneous Expenses,5034,Business grant,25/09/2015,106198,250.00,Revenue,Chantel Beech,71756
Chorley Borough Council,http://statistics.data.gov.uk/id/local-authority/30UE,Parking Services,1066,Streetscene & Leisure Contracts,External Contractors,50008,Private Contractors,5042,Notice Processing services as agreed in Lancashire contract. 320 PCNs per month @ 2.90  ticket. April 2015  March 2016,09/09/2015,105825,788.97,Revenue,Chipside Ltd,22063
Chorley Borough Council,http://statistics.data.gov.uk/id/local-authority/30UE,Corporate Management,1008,Health Environment & Neighbourhoods,Taxi Testing & Vehicle Safety Report,40234,Services,5027,MOT,18/09/2015,106226,713.05,Revenue,Chorley Autocare Ltd,17110
Chorley Borough Council,http://statistics.data.gov.uk/id/local-authority/30UE,Corporate Management,1008,Health Environment & Neighbourhoods,Taxi Testing & Vehicle Safety Report,40234,Services,5027,taxi test,18/09/2015,106226,111.15,Revenue,Chorley Autocare Ltd,17110
Chorley Borough Council,http://statistics.data.gov.uk/id/local-authority/30UE,Central Support Services,1009,Health Environment & Neighbourhoods,Play Events,40181,Miscellaneous Expenses,5034,Hire of inflatables for playday and mini playdays throughout summer programme,11/09/2015,105980,870.00,Revenue,Chorley Bouncy Castles,55301
Chorley Borough Council,http://statistics.data.gov.uk/id/local-authority/30UE,Democratic Represent and  Mgnt,1007,Governance,Grants To Other Organisations,40127,Grants and Subscriptions,5031,grant fund,30/09/2015,106432,250.00,Revenue,Chorley District/ Chorley Healey Scouts,20906
Chorley Borough Council,http://statistics.data.gov.uk/id/local-authority/30UE,Unapportionable Central OHeads,1009,Governance,Asset Maintenance Fund,20012,Repairs Maintenance & Alts,5005,"Supply and fit 4 vertical blinds in blackout fabric to the Audit office, Town Hall as per your quote.",30/09/2015,106357,398.00,Revenue,Chorley Window Blinds,54011
Chorley Borough Council,http://statistics.data.gov.uk/id/local-authority/30UE,Democratic Represent and  Mgnt,1007,Streetscene & Leisure Contracts,Supplies-Grounds Maintenance,40025,"Equipment, Furniture & Materia",5023,First Aid provision at Chorley Flower Show 2015,02/09/2015,105768,250.00,Revenue,Chorley`s Angels Community Group,63882
Chorley Borough Council,http://statistics.data.gov.uk/id/local-authority/30UE,Parking Services,1066,Streetscene & Leisure Contracts,Salting & Gritting,20059,Grounds Maintenance Costs,5013,Supply 1 x 28 tonne of 6mm rock salt to be delivered to Yarrow Bridge depot at price given Post code PR,30/09/2015,106320,949.68,Revenue,Compass Minerals UK Ltd,18087
Chorley Borough Council,http://statistics.data.gov.uk/id/local-authority/30UE,Capital,Capital,Governance,Main Contractor,3007,Capital Expenditure,Capital,Town Hall Atrium lighting as per Quote Ref C3878 and ORDER6640.,02/09/2015,105652,"1,410.00",Capital,Corlett Electrical Eng Co Ltd,16271
Chorley Borough Council,http://statistics.data.gov.uk/id/local-authority/30UE,Unapportionable Central OHeads,1009,Governance,Planned Maintenance,20006,Repairs Maintenance & Alts,5005,PPM blanket order until September 2015.,16/09/2015,106053,264.88,Revenue,Corlett Electrical Eng Co Ltd,16271
Chorley Borough Council,http://statistics.data.gov.uk/id/local-authority/30UE,Unapportionable Central OHeads,1009,Governance,Planned Maintenance,20006,Repairs Maintenance & Alts,5005,PPM blanket order until September 2015.,16/09/2015,106058,270.87,Revenue,Corlett Electrical Eng Co Ltd,16271
Chorley Borough Council,http://statistics.data.gov.uk/id/local-authority/30UE,Unapportionable Central OHeads,1009,Governance,Planned Maintenance,20006,Repairs Maintenance & Alts,5005,PPM blanket order until September 2015.,18/09/2015,106068,485.50,Revenue,Corlett Electrical Eng Co Ltd,16271
Chorley Borough Council,http://statistics.data.gov.uk/id/local-authority/30UE,Unapportionable Central OHeads,1009,Governance,Asset Maintenance Fund,20012,Repairs Maintenance & Alts,5005,Astley Park electrical supplies,25/09/2015,106262,"2,046.72",Revenue,Corlett Electrical Eng Co Ltd,16271
Chorley Borough Council,http://statistics.data.gov.uk/id/local-authority/30UE,Service Management & Support,1009,Streetscene & Leisure Contracts,Supplies-Grounds Maintenance,40025,"Equipment, Furniture & Materia",5023,Provide 3 junior fishing coaching sessions on 27th July/3rd and 10th August,09/09/2015,105415,300.00,Revenue,Curwens Angling Centre,61163
Chorley Borough Council,http://statistics.data.gov.uk/id/local-authority/30UE,Service Management & Support,1009,Streetscene & Leisure Contracts,Supplies-Grounds Maintenance,40025,"Equipment, Furniture & Materia",5023,1 x Balmoral Bench 1.8m KD with Stainless steel plaque 6``x2``,09/09/2015,105841,370.82,Revenue,Cyan,61782
Chorley Borough Council,http://statistics.data.gov.uk/id/local-authority/30UE,Business Support,1095,Economic Development,Miscellaneous Expenses,40200,Miscellaneous Expenses,5034,Starting in Business grant,09/09/2015,105855,250.00,Revenue,NAME REDACTED,71719
Chorley Borough Council,http://statistics.data.gov.uk/id/local-authority/30UE,Service Management & Support,1009,Streetscene & Leisure Contracts,Hire Of Transport,30028,Contrct Hire & Operating Lease,5018,Hire of Ford Transit tipper from 01/07/2 through to 02/10/2015 inclusive,09/09/2015,105138,398.57,Revenue,Dawsonrentals Vans Ltd,68557
Chorley Borough Council,http://statistics.data.gov.uk/id/local-authority/30UE,Service Management & Support,1009,Streetscene & Leisure Contracts,Hire Of Transport,30028,Contrct Hire & Operating Lease,5018,Hire of Ford Transit tipper from 01/07/2 through to 02/10/2015 inclusive,09/09/2015,105804,398.57,Revenue,Dawsonrentals Vans Ltd,68557
Chorley Borough Council,http://statistics.data.gov.uk/id/local-authority/30UE,Business Support,1095,Governance,Research & Feasibilities,40079,Services,5027,Final service charge reconciliation and accounts closure as agreed,25/09/2015,106311,"2,000.00",Revenue,Deloitte LLP,58651
Chorley Borough Council,http://statistics.data.gov.uk/id/local-authority/30UE,Democratic Represent and  Mgnt,1007,Streetscene & Leisure Contracts,Miscellaneous Expenses,40200,Miscellaneous Expenses,5034,gruffalo,11/09/2015,105345,"1,170.00",Revenue,Demco Europe Limited,71225
Chorley Borough Council,http://statistics.data.gov.uk/id/local-authority/30UE,Unapportionable Central OHeads,1009,Shared Service Arrangement,General Subscriptions,40146,Grants and Subscriptions,5031,Subscription to the Chest on behalf of Chorley and SRBC for the period 1st August 2015 to 31st July 2016 - price 2140 per authority,23/09/2015,106097,"4,280.00",Revenue,Due North LTD,22498
Chorley Borough Council,http://statistics.data.gov.uk/id/local-authority/30UE,Unapportionable Central OHeads,1009,Governance,Planned Maintenance,20006,Repairs Maintenance & Alts,5005,"Stage lighting in the Lancastrian Suite, Town Hall.",25/09/2015,105917,"4,970.00",Revenue,Eccleston Electrical Services Limited,17529
Chorley Borough Council,http://statistics.data.gov.uk/id/local-authority/30UE,Central Support Services,1009,"Customer, ICT & Transactional",Consultants` Fees,40077,Services,5027,"4 days to cover the upgrade of I@W: 1 - advice and prep2 - upgrade test3 - upgrade live4 - onsite support",09/09/2015,105886,"1,600.00",Revenue,EDM Consulting Ltd,55511
Chorley Borough Council,http://statistics.data.gov.uk/id/local-authority/30UE,Central Support Services,1009,"Customer, ICT & Transactional",Mobile Phones,40086,Communication and Computing,5028,calls,16/09/2015,106158,621.92,Revenue,EE - Orange,16486
Chorley Borough Council,http://statistics.data.gov.uk/id/local-authority/30UE,Unapportionable Central OHeads,1009,"Customer, ICT & Transactional",Mobile Phones,40086,Communication and Computing,5028,1gb data bundle,16/09/2015,106157,247.44,Revenue,EE LIMITED,63366
Chorley Borough Council,http://statistics.data.gov.uk/id/local-authority/30UE,Unapportionable Central OHeads,1009,"Customer, ICT & Transactional",Mobile Phones,40086,Communication and Computing,5028,igb data bundle,16/09/2015,106157,100.00,Revenue,EE LIMITED,63366
Chorley Borough Council,http://statistics.data.gov.uk/id/local-authority/30UE,Central Support Services,1009,"Customer, ICT & Transactional",Mobile Phones,40086,Communication and Computing,5028,i gb data bundle,16/09/2015,106157,100.00,Revenue,EE LIMITED,63366
Chorley Borough Council,http://statistics.data.gov.uk/id/local-authority/30UE,Central Support Services,1009,"Customer, ICT & Transactional",Mobile Phones,40086,Communication and Computing,5028,4g iphone,16/09/2015,106157,145.00,Revenue,EE LIMITED,63366
Chorley Borough Council,http://statistics.data.gov.uk/id/local-authority/30UE,Central Support Services,1009,"Customer, ICT & Transactional",Mobile Phones,40086,Communication and Computing,5028,4gb iphone,16/09/2015,106157,100.00,Revenue,EE LIMITED,63366
Chorley Borough Council,http://statistics.data.gov.uk/id/local-authority/30UE,Central Support Services,1009,"Customer, ICT & Transactional",Mobile Phones,40086,Communication and Computing,5028,none vat,16/09/2015,106157,40.00,Revenue,EE LIMITED,63366
Chorley Borough Council,http://statistics.data.gov.uk/id/local-authority/30UE,Unapportionable Central OHeads,1009,"Customer, ICT & Transactional",Mobile Phones,40086,Communication and Computing,5028,"1gb data bundle on 4g network - 2 year contract. SIMs only. 70 users x 2.50 per month x 2 years = 4,200. ",23/09/2015,106213,202.14,Revenue,EE LIMITED,63366
Chorley Borough Council,http://statistics.data.gov.uk/id/local-authority/30UE,Unapportionable Central OHeads,1009,"Customer, ICT & Transactional",Mobile Phones,40086,Communication and Computing,5028,"1gb data bundle on 4g network - 2 year contract. SIMs only. 30 users x 2.50 per month x 2 years = 1,800. ",23/09/2015,106213,75.00,Revenue,EE LIMITED,63366
Chorley Borough Council,http://statistics.data.gov.uk/id/local-authority/30UE,Central Support Services,1009,"Customer, ICT & Transactional",Mobile Phones,40086,Communication and Computing,5028,"1gb data bundle on 4g network - 2 year contract. SIMs only. 30 users x 2.50 per month x 2 years = 1,800. ",23/09/2015,106213,75.00,Revenue,EE LIMITED,63366
Chorley Borough Council,http://statistics.data.gov.uk/id/local-authority/30UE,Central Support Services,1009,"Customer, ICT & Transactional",Mobile Phones,40086,Communication and Computing,5028,"4g iPhone 5s, 16GB, space grey, unlimited calls & texts, 1GB data. 15 connections at 10 per user per month for 24 month",23/09/2015,106213,150.00,Revenue,EE LIMITED,63366
Chorley Borough Council,http://statistics.data.gov.uk/id/local-authority/30UE,Central Support Services,1009,"Customer, ICT & Transactional",Mobile Phones,40086,Communication and Computing,5028,"4g iPhone 5s, 16GB, space grey, unlimited calls & texts,1GB data. 10 connections at 10 per user per month for 24 month",23/09/2015,106213,100.00,Revenue,EE LIMITED,63366
Chorley Borough Council,http://statistics.data.gov.uk/id/local-authority/30UE,Unapportionable Central OHeads,1009,"Customer, ICT & Transactional",Mobile Phones,40086,Communication and Computing,5028,"1gb data bundle on 4g network - 2 year contract. SIMs only. 70 users x 2.50 per month x 2 years = 4,200. ",23/09/2015,106214,175.00,Revenue,EE LIMITED,63366
Chorley Borough Council,http://statistics.data.gov.uk/id/local-authority/30UE,Unapportionable Central OHeads,1009,"Customer, ICT & Transactional",Mobile Phones,40086,Communication and Computing,5028,"1gb data bundle on 4g network - 2 year contract. SIMs only. 30 users x 2.50 per month x 2 years = 1,800. ",23/09/2015,106214,75.00,Revenue,EE LIMITED,63366
Chorley Borough Council,http://statistics.data.gov.uk/id/local-authority/30UE,Central Support Services,1009,"Customer, ICT & Transactional",Mobile Phones,40086,Communication and Computing,5028,"1gb data bundle on 4g network - 2 year contract. SIMs only. 30 users x 2.50 per month x 2 years = 1,800. ",23/09/2015,106214,75.00,Revenue,EE LIMITED,63366
Chorley Borough Council,http://statistics.data.gov.uk/id/local-authority/30UE,Central Support Services,1009,"Customer, ICT & Transactional",Mobile Phones,40086,Communication and Computing,5028,"4g iPhone 5s, 16GB, space grey, unlimited calls & texts,1GB data. 15 connections at 10 per user per month for 24 month",23/09/2015,106214,200.75,Revenue,EE LIMITED,63366
Chorley Borough Council,http://statistics.data.gov.uk/id/local-authority/30UE,Central Support Services,1009,"Customer, ICT & Transactional",Mobile Phones,40086,Communication and Computing,5028,"4g iPhone 5s, 16GB, space grey, unlimited calls & texts,1GB data.10 connections at 10 per user per month for 24 month",23/09/2015,106214,100.00,Revenue,EE LIMITED,63366
Chorley Borough Council,http://statistics.data.gov.uk/id/local-authority/30UE,Central Support Services,1009,"Customer, ICT & Transactional",Mobile Phones,40086,Communication and Computing,5028,4g iphone 5s 4g space grey,23/09/2015,106214,20.00,Revenue,EE LIMITED,63366
Chorley Borough Council,http://statistics.data.gov.uk/id/local-authority/30UE,Central Support Services,1009,"Customer, ICT & Transactional",Mobile Phones,40086,Communication and Computing,5028,non vat,23/09/2015,106214,30.00,Revenue,EE LIMITED,63366
Chorley Borough Council,http://statistics.data.gov.uk/id/local-authority/30UE,Capital,Capital,Streetscene & Leisure Contracts,Main Contractor,3007,Capital Expenditure,Capital,Civil engineering and landscaping works at Rangletts Recreation Ground,11/09/2015,105979,"25,900.18",Capital,English Landscapes Ltd,67982
Chorley Borough Council,http://statistics.data.gov.uk/id/local-authority/30UE,Corporate Management,1008,Health Environment & Neighbourhoods,Miscellaneous Expenses,40200,Miscellaneous Expenses,5034,1 Tray of pre printed cards (500 cards per tray) Your Ref:  idx276303,02/09/2015,105784,359.50,Revenue,Essentra Security,66416
Chorley Borough Council,http://statistics.data.gov.uk/id/local-authority/30UE,Democratic Represent and  Mgnt,1007,Streetscene & Leisure Contracts,Rent/Hire Of Premises,20017,Premises Rents,5007,"Duxbury Coach House 2015/16 Fin Year Rent - 10,625 per qtr invoiced quarterly Q1: 25/03/15 - 24/06/15  Q2: 25/06/15 ",16/09/2015,106162,"10,625.00",Revenue,European Settled Estates Plc,16495
Chorley Borough Council,http://statistics.data.gov.uk/id/local-authority/30UE,Democratic Represent and  Mgnt,1007,Streetscene & Leisure Contracts,Rent/Hire Of Premises,20017,Premises Rents,5007,"Service Charge - 1.125 per qtr Q1: 25/03/15 - 24/06/15    Q2: 25/06/15 - 24/09/15 Q3: 25/09/15 - 24/12/15    Q4: 25/12/15 ",16/09/2015,106162,"1,125.00",Revenue,European Settled Estates Plc,16495
Chorley Borough Council,http://statistics.data.gov.uk/id/local-authority/30UE,Capital,Capital,Governance,Main Contractor,3007,Capital Expenditure,Capital,Town Hall - Quote No.ERQ013038/3 for the Roof Access and Quote No.ERQ013045/3 for the Access Walkway proposal.,11/09/2015,105338,"34,182.40",Capital,Eurosafe Solutions Limited,66302
Chorley Borough Council,http://statistics.data.gov.uk/id/local-authority/30UE,Capital,Capital,Governance,Main Contractor,3007,Capital Expenditure,Capital,Town Hall - Quote No.ERQ013038/3 for the Roof Access and Quote No.ERQ013045/3 for the Access Walkway proposal.,11/09/2015,105659,"17,399.60",Capital,Eurosafe Solutions Limited,66302
Chorley Borough Council,http://statistics.data.gov.uk/id/local-authority/30UE,Service Management & Support,1009,Streetscene & Leisure Contracts,Hire Of Transport,30028,Contrct Hire & Operating Lease,5018,Hire of Case tractor and McConnell flail at price quoted via the chest for 12 month period. From 0/04/2015 to 31/03/2015,04/09/2015,105406,"1,565.29",Revenue,F R Sharrock Ltd,18091
Chorley Borough Council,http://statistics.data.gov.uk/id/local-authority/30UE,Service Management & Support,1009,Streetscene & Leisure Contracts,Supplies - Workshop,40246,"Equipment, Furniture & Materia",5023,Supply items as on Pro - forma invoice number 106854 as per Email ,02/09/2015,105783,676.29,Revenue,F R Sharrock Ltd,18091
Chorley Borough Council,http://statistics.data.gov.uk/id/local-authority/30UE,Service Management & Support,1009,Streetscene & Leisure Contracts,Hire Of Transport,30028,Contrct Hire & Operating Lease,5018,Hire of Case tractor and McConnell flail at price quoted via the chest for 12 month period. From 0/04/2015 to 31/03/2015,18/09/2015,105880,"1,639.84",Revenue,F R Sharrock Ltd,18091
Chorley Borough Council,http://statistics.data.gov.uk/id/local-authority/30UE,Service Management & Support,1009,Streetscene & Leisure Contracts,Tools & Equipment - Purchase,40003,"Equipment, Furniture & Materia",5023,Supply Victa Mulchmaster 560SP4 as per your quote ,11/09/2015,105978,750.00,Revenue,F R Sharrock Ltd,18091
Chorley Borough Council,http://statistics.data.gov.uk/id/local-authority/30UE,Corporate Management,1008,Streetscene & Leisure Contracts,Miscellaneous Expenses,40200,Miscellaneous Expenses,5034,Repair/refurbishment of waste bins 25 x 1100ltr and 3 x 660ltr,09/09/2015,106040,"2,600.00",Revenue,Fairport Containers Ltd,17735
Chorley Borough Council,http://statistics.data.gov.uk/id/local-authority/30UE,Private Sector HSG Renewal,1073,Housing,Miscellaneous Expenses,40200,Miscellaneous Expenses,5034,Funding contribution using Affordable Warmth Fund for provision of replacement boiler NAMEAND ADDRESS REDACTED,11/09/2015,105952,820.00,Revenue,Firefly Energi Ltd,69925
Chorley Borough Council,http://statistics.data.gov.uk/id/local-authority/30UE,Private Sector HSG Renewal,1073,Housing,Miscellaneous Expenses,40200,Miscellaneous Expenses,5034,Funding contribution using Affordable Warmth Funding provision of replacement boiler NAME AND ADDRESS REDACTED,11/09/2015,105953,434.92,Revenue,Firefly Energi Ltd,69925
Chorley Borough Council,http://statistics.data.gov.uk/id/local-authority/30UE,Democratic Represent and  Mgnt,1007,Streetscene & Leisure Contracts,Supplies-Grounds Maintenance,40025,"Equipment, Furniture & Materia",5023,Supply of flowers at Astley Hall,11/09/2015,105828,"1,920.32",Revenue,Flowervision,71222
Chorley Borough Council,http://statistics.data.gov.uk/id/local-authority/30UE,Service Management & Support,1009,Streetscene & Leisure Contracts,Vehicle Maintenance,30045,Direct Transport Costs,5016,Carryout sweeper equipment inspection on RV14DVB,09/09/2015,105878,87.50,Revenue,Freight Transport Assoc Ltd,16333
Chorley Borough Council,http://statistics.data.gov.uk/id/local-authority/30UE,Service Management & Support,1009,Streetscene & Leisure Contracts,Freight Transport Assoc Fees,40150,Grants and Subscriptions,5031,Carryout fan inspection on RV14DVB as requested,09/09/2015,105878,31.20,Revenue,Freight Transport Assoc Ltd,16333
Chorley Borough Council,http://statistics.data.gov.uk/id/local-authority/30UE,Service Management & Support,1009,Streetscene & Leisure Contracts,Freight Transport Assoc Fees,40150,Grants and Subscriptions,5031,Carryout 6 weekly safety inspection on RV14DVB for Olicence compliance,09/09/2015,105878,117.63,Revenue,Freight Transport Assoc Ltd,16333
Chorley Borough Council,http://statistics.data.gov.uk/id/local-authority/30UE,Service Management & Support,1009,Streetscene & Leisure Contracts,Freight Transport Assoc Fees,40150,Grants and Subscriptions,5031,Carryout 6 weekly safety inspection on DX55CVG for Olicence compliance,09/09/2015,105878,117.63,Revenue,Freight Transport Assoc Ltd,16333
Chorley Borough Council,http://statistics.data.gov.uk/id/local-authority/30UE,Service Management & Support,1009,Streetscene & Leisure Contracts,Freight Transport Assoc Fees,40150,Grants and Subscriptions,5031,Carryout 6 weekly safety inspection on PN02HRL for Olicence compliance,09/09/2015,105878,117.63,Revenue,Freight Transport Assoc Ltd,16333
Chorley Borough Council,http://statistics.data.gov.uk/id/local-authority/30UE,Service Management & Support,1009,Streetscene & Leisure Contracts,Freight Transport Assoc Fees,40150,Grants and Subscriptions,5031,Carryout 6 weekly safety inspection on DK56JWL for Olicence compliance,09/09/2015,105878,117.63,Revenue,Freight Transport Assoc Ltd,16333
Chorley Borough Council,http://statistics.data.gov.uk/id/local-authority/30UE,Private Sector HSG Renewal,1073,Housing,Miscellaneous Expenses,40200,Miscellaneous Expenses,5034,Affordable warmth 2 Well Orchard,04/09/2015,105547,"1,022.50",Revenue,G McGavock Ltd,16921
Chorley Borough Council,http://statistics.data.gov.uk/id/local-authority/30UE,Democratic Represent and  Mgnt,1007,Streetscene & Leisure Contracts,Burglar Alarms & Security Systems,20075,Fixtures and Fittings,5010,,23/09/2015,106220,338.84,Revenue,G4S Secure Solutions (UK) Ltd,59898
Chorley Borough Council,http://statistics.data.gov.uk/id/local-authority/30UE,Business Support,1095,Governance,Electricity,20013,Energy Costs,5006,gillibrand,04/09/2015,105553,333.54,Revenue,Gazprom Energy,56502
Chorley Borough Council,http://statistics.data.gov.uk/id/local-authority/30UE,Business Support,1095,Governance,Electricity,20013,Energy Costs,5006,energy,18/09/2015,106238,328.95,Revenue,Gazprom Energy,56502
Chorley Borough Council,http://statistics.data.gov.uk/id/local-authority/30UE,Democratic Represent and  Mgnt,1007,Streetscene & Leisure Contracts,Playground Equipment,40008,"Equipment, Furniture & Materia",5023,1 X Birds Nest Seat - 1.0m,04/09/2015,105749,565.00,Revenue,GB Sport & Leisure,21305
Chorley Borough Council,http://statistics.data.gov.uk/id/local-authority/30UE,Democratic Represent and  Mgnt,1007,Governance,Mayoral Hospitality,40123,Expenses,5030,Catering at the Mayor`s Charity Golf Day on Tuesday 8th September 2015. 26 @ 13 per head plus food for Mayor.,18/09/2015,106167,381.00,Revenue,Glendale Golf Ltd,66813
Chorley Borough Council,http://statistics.data.gov.uk/id/local-authority/30UE,Central Support Services,1009,Health Environment & Neighbourhoods,External Contractor,40198,Miscellaneous Expenses,5034,Reactive & proactive graffiti removal,23/09/2015,106302,"1,246.88",Revenue,Graffiti Removal (North) Ltd,17320
Chorley Borough Council,http://statistics.data.gov.uk/id/local-authority/30UE,Corporate Management,1008,Shared Service Arrangement,External Audit,40064,Services,5027,2015-16 External Audit Fee,30/09/2015,106367,"11,313.75",Revenue,Grant Thornton UK LLP,57322
Chorley Borough Council,http://statistics.data.gov.uk/id/local-authority/30UE,Service Management & Support,1009,Streetscene & Leisure Contracts,Protective Clothing,40040,"Clothing, Uniforms and Laundry",5025,Safety Boot Chukka.  Size =11.  Product Code = B902,23/09/2015,106038,17.90,Revenue,Guardsman Ltd,22411
Chorley Borough Council,http://statistics.data.gov.uk/id/local-authority/30UE,Service Management & Support,1009,Streetscene & Leisure Contracts,Protective Clothing,40040,"Clothing, Uniforms and Laundry",5025,"Hearing Protectors, high performing general purpose earmuff, quick height shift adjustable ear cups.  Product Code = 233",23/09/2015,106038,32.00,Revenue,Guardsman Ltd,22411
Chorley Borough Council,http://statistics.data.gov.uk/id/local-authority/30UE,Service Management & Support,1009,Streetscene & Leisure Contracts,Protective Clothing,40040,"Clothing, Uniforms and Laundry",5025,Winter HV Orange garb n grip gloves.  Size = 9.  Product Code = TNG-O,23/09/2015,106038,211.20,Revenue,Guardsman Ltd,22411
Chorley Borough Council,http://statistics.data.gov.uk/id/local-authority/30UE,Service Management & Support,1009,Streetscene & Leisure Contracts,Protective Clothing,40040,"Clothing, Uniforms and Laundry",5025,"Hi Vis Yellow waistcoat, Velcro front fastening c/w Chorley Council logo screen printed on back and front.  Product Code ",23/09/2015,106038,49.25,Revenue,Guardsman Ltd,22411
Chorley Borough Council,http://statistics.data.gov.uk/id/local-authority/30UE,Service Management & Support,1009,Streetscene & Leisure Contracts,Protective Clothing,40040,"Clothing, Uniforms and Laundry",5025,Logos as per above,23/09/2015,106038,10.75,Revenue,Guardsman Ltd,22411
Chorley Borough Council,http://statistics.data.gov.uk/id/local-authority/30UE,Service Management & Support,1009,Streetscene & Leisure Contracts,Supplies-Grounds Maintenance,40025,"Equipment, Furniture & Materia",5023,"60,000 bin bagsto spec PPRS2513 ? 500mm x 855 x 975mm ? Printed Chorley Borough Refuse Sack ? Black on White",23/09/2015,106204,"5,490.00",Revenue,Harrisons Packaging Ltd,17555
Chorley Borough Council,http://statistics.data.gov.uk/id/local-authority/30UE,Unapportionable Central OHeads,1009,Policy & Performance,Exhibitions & Special Events,40158,Miscellaneous Expenses,5034,Balance for the performance of Mr Stink in Astley Park,25/09/2015,106365,887.75,Revenue,Heartbreak Productions,56110
Chorley Borough Council,http://statistics.data.gov.uk/id/local-authority/30UE,Community Development,1097,Policy & Performance,Core Funding Grants,40133,Grants and Subscriptions,5031,period 01/04/15 - 31/02/15,30/09/2015,106462,"5,000.00",Revenue,Help The Homeless (Chorley),16716
Chorley Borough Council,http://statistics.data.gov.uk/id/local-authority/30UE,Unapportionable Central OHeads,1009,Governance,General Repairs - Reactive,20004,Repairs Maintenance & Alts,5005,Reactive blanket order until September 2015.,09/09/2015,105556,289.00,Revenue,Henry Nightingale & Son,17923
Chorley Borough Council,http://statistics.data.gov.uk/id/local-authority/30UE,Unapportionable Central OHeads,1009,Governance,General Repairs - Reactive,20004,Repairs Maintenance & Alts,5005,Hire of air conditioning units at Cotswold House.,11/09/2015,105161,761.46,Revenue,Hss Hire Service Group Plc,16736
Chorley Borough Council,http://statistics.data.gov.uk/id/local-authority/30UE,Business Support,1095,Chief Executives Office,Miscellaneous Expenses,40200,Miscellaneous Expenses,5034,Starting in business grant payment,02/09/2015,105557,250.00,Revenue,Hugel Trading Group Ltd,71424
Chorley Borough Council,http://statistics.data.gov.uk/id/local-authority/30UE,Business Support,1095,Policy & Performance,Research & Feasibilities,40079,Services,5027,Market Walk Extension - Professional Fees: Engineering Services,16/09/2015,105791,"1,208.33",Revenue,Hulley and Kirkwood Consulting Engineers Ltd,69390
Chorley Borough Council,http://statistics.data.gov.uk/id/local-authority/30UE,Unapportionable Central OHeads,1009,Governance,Fixtures & Fittings - Purchase,20027,Fixtures and Fittings,5010,Air fresheners,11/09/2015,105859,402.82,Revenue,Initial Washroom Solutions,17607
Chorley Borough Council,http://statistics.data.gov.uk/id/local-authority/30UE,Central Support Services,1009,"Customer, ICT & Transactional",Computer Equipment-Purchase,40098,Communication and Computing,5028,Installation of 3 x cat5e cables and 1 x coax cable to the Chief Exec office at Town Hall,09/09/2015,105720,389.00,Revenue,Interconnect Network Systems,21292
Chorley Borough Council,http://statistics.data.gov.uk/id/local-authority/30UE,Business Support,1095,Governance,Cleaning Services,20033,Cleaning and Domestic Supplies,5012,To supply additional bird spiking & roof Cleaning to Market Walk Shopping Centre,04/09/2015,105719,500.00,Revenue,Interserve,70619
Chorley Borough Council,http://statistics.data.gov.uk/id/local-authority/30UE,Business Support,1095,Economic Development,Cleaning/Attendants' Services,20041,Cleaning and Domestic Supplies,5012,Daily Cleaning Services for Market Walk SC August 2015,04/09/2015,105782,"3,965.06",Revenue,Interserve,70619
Chorley Borough Council,http://statistics.data.gov.uk/id/local-authority/30UE,Community Development,1097,Governance,Rent/Hire Of Premises,20017,Premises Rents,5007,"Rent and insurance charge for 35-39 Market Street, Chorley.",25/09/2015,106175,"7,218.75",Revenue,J R Keys,17124
Chorley Borough Council,http://statistics.data.gov.uk/id/local-authority/30UE,Business Support,1095,Economic Development,Refuse Collection,20037,Cleaning and Domestic Supplies,5012,To supply Waste Compactor services to MWSC HD260TR Serial No: 02601707021135 August 2015,23/09/2015,105645,270.00,Revenue,J&H Rentals Limited,70699
Chorley Borough Council,http://statistics.data.gov.uk/id/local-authority/30UE,Business Support,1095,Economic Development,Miscellaneous Expenses,40200,Miscellaneous Expenses,5034,Starting in business grant,09/09/2015,105790,250.00,Revenue,NAME REDACTED,71652
Chorley Borough Council,http://statistics.data.gov.uk/id/local-authority/30UE,Corporate Management,1008,Shared Service Arrangement,Employee Related Insurance,18003,Indirect Employee Expenses,5002,policy,18/09/2015,106284,"7,936.83",Revenue,JLT Speciality Ltd,52747
Chorley Borough Council,http://statistics.data.gov.uk/id/local-authority/30UE,Democratic Represent and  Mgnt,1007,Streetscene & Leisure Contracts,Supplies-Grounds Maintenance,40025,"Equipment, Furniture & Materia",5023,Breedon gravel path and associated works relating to Evaders Garden,09/09/2015,105860,"3,137.00",Revenue,John Everiss Design Ltd,69632
Chorley Borough Council,http://statistics.data.gov.uk/id/local-authority/30UE,Business Support,1095,Chief Executives Office,Miscellaneous Expenses,40200,Miscellaneous Expenses,5034,Starting in business grant payment,02/09/2015,105534,250.00,Revenue,NAME REDACTED,71423
Chorley Borough Council,http://statistics.data.gov.uk/id/local-authority/30UE,Development Control,1091,Planning,Statutory Notices,40160,Miscellaneous Expenses,5034,Planning Public Notices to appear in the Chorley Guardian April 2015 to March 2016,18/09/2015,106203,379.04,Revenue,Johnston Publishing Ltd,20072
Chorley Borough Council,http://statistics.data.gov.uk/id/local-authority/30UE,Capital,Capital,Housing,Grants,3002,Capital Expenditure,Capital,DFG,04/09/2015,105727,"3,185.00",Capital,K Berry Ltd,16421
Chorley Borough Council,http://statistics.data.gov.uk/id/local-authority/30UE,Homelessness,1075,Housing,Grants To Other Organisations,40127,Grants and Subscriptions,5031,"Provision of Pre-Tenancy Training for Chorley, Preston, South Ribble and West Lancashire Q3 Year 2",25/09/2015,106300,"3,718.25",Revenue,Key,61252
Chorley Borough Council,http://statistics.data.gov.uk/id/local-authority/30UE,Unapportionable Central OHeads,1009,HR & Org. Development,Leadership Development Programme,17008,Indirect Employee Expenses,5002,Strengths Finder Sessions on 13th and 26th August and 9th September 2015,16/09/2015,106133,"2,068.85",Revenue,Kingfisher Coaching Limited,70305
Chorley Borough Council,http://statistics.data.gov.uk/id/local-authority/30UE,Unapportionable Central OHeads,1009,HR & Org. Development,Leadership Development Programme,17008,Indirect Employee Expenses,5002,Strengths finder,16/09/2015,106133,415.34,Revenue,Kingfisher Coaching Limited,70305
Chorley Borough Council,http://statistics.data.gov.uk/id/local-authority/30UE,Unapportionable Central OHeads,1009,Governance,Planned Maintenance,20006,Repairs Maintenance & Alts,5005,Annual sewage treatment contract at Yarrow Valley Visitor`s Centre.,04/09/2015,105718,601.42,Revenue,Kingspan Environmental Service,67443
Chorley Borough Council,http://statistics.data.gov.uk/id/local-authority/30UE,Control Accounts,Control,Shared Service Arrangement,General Balances,100,Balance Sheet,Balance,sal deds,25/09/2015,106282,"1,166.85",Revenue,Labour Councillors Association,17577
Chorley Borough Council,http://statistics.data.gov.uk/id/local-authority/30UE,Development Control,1091,Planning,Professional Fees,40063,Services,5027,Agricultural Planning Consultations,09/09/2015,105725,800.00,Revenue,Lancashire County Council,17758
Chorley Borough Council,http://statistics.data.gov.uk/id/local-authority/30UE,Parking Services,1066,"Customer, ICT & Transactional",Other Fees,40212,Miscellaneous Expenses,5034,Residents Parking Surplus 2014/2015,09/09/2015,105780,"11,171.00",Revenue,Lancashire County Council,17758
Chorley Borough Council,http://statistics.data.gov.uk/id/local-authority/30UE,Capital,Capital,Housing,Grants,3002,Capital Expenditure,Capital,DFG,16/09/2015,106081,803.00,Capital,Lancashire County Council,17758
Chorley Borough Council,http://statistics.data.gov.uk/id/local-authority/30UE,Capital,Capital,Housing,Grants,3002,Capital Expenditure,Capital,DFG,16/09/2015,106082,"4,977.00",Capital,Lancashire County Council,17758
Chorley Borough Council,http://statistics.data.gov.uk/id/local-authority/30UE,Capital,Capital,Housing,Grants,3002,Capital Expenditure,Capital,DFG,16/09/2015,106083,"4,315.00",Capital,Lancashire County Council,17758
Chorley Borough Council,http://statistics.data.gov.uk/id/local-authority/30UE,Parking Services,1066,Health Environment & Neighbourhoods,Car Park Lamps,20064,Grounds Maintenance Costs,5013,lighting and electrical for carparks,30/09/2015,106374,"1,357.06",Revenue,Lancashire County Council,20027
Chorley Borough Council,http://statistics.data.gov.uk/id/local-authority/30UE,Corporate Management,1008,Policy & Performance,Other Fees,40212,Miscellaneous Expenses,5034,Subsidy for the provision of a Meals on Wheels service in Chorley to 6 September 2015,18/09/2015,106161,890.26,Revenue,Lancashire Fayre,62967
Chorley Borough Council,http://statistics.data.gov.uk/id/local-authority/30UE,Unapportionable Central OHeads,1009,HR & Org. Development,Service Fees,40056,Services,5027,Occupational Health fees for March/April,02/09/2015,105323,560.00,Revenue,Lancashire Teaching Hospitals NHS FT,19003
Chorley Borough Council,http://statistics.data.gov.uk/id/local-authority/30UE,Unapportionable Central OHeads,1009,HR & Org. Development,Service Fees,40056,Services,5027,Occupational Health fees for March/April,02/09/2015,105323,146.00,Revenue,Lancashire Teaching Hospitals NHS FT,19003
Chorley Borough Council,http://statistics.data.gov.uk/id/local-authority/30UE,Corporate Management,1008,Health Environment & Neighbourhoods,Clinical Waste Collection,50007,Private Contractors,5042,Disposal of Clinical waste from Chorley Households. April 2015 to March 2016 yellow bag collections approx 550 per month..,11/09/2015,105582,"1,231.01",Revenue,Lancashire Teaching Hospitals NHS FT,19003
Chorley Borough Council,http://statistics.data.gov.uk/id/local-authority/30UE,Unapportionable Central OHeads,1009,Governance,Asset Maintenance Fund,20012,Repairs Maintenance & Alts,5005,Work in progress,16/09/2015,105766,"3,743.61",Revenue,Liberata UK,20716
Chorley Borough Council,http://statistics.data.gov.uk/id/local-authority/30UE,Unapportionable Central OHeads,1009,Governance,Asset Maintenance Fund,20012,Repairs Maintenance & Alts,5005,Work in progress,16/09/2015,105861,"1,758.10",Revenue,Liberata UK,20716
Chorley Borough Council,http://statistics.data.gov.uk/id/local-authority/30UE,Capital,Capital,Streetscene & Leisure Contracts,Main Contractor,3007,Capital Expenditure,Capital,Extension to Clayton Brook Village hall,11/09/2015,105966,"25,365.18",Capital,Link Contracting Services Ltd,71226
Chorley Borough Council,http://statistics.data.gov.uk/id/local-authority/30UE,Central Support Services,1009,Health Environment & Neighbourhoods,Children's Activities,40188,Miscellaneous Expenses,5034,Delivery of Outdoor Adventure week at Astley Park,23/09/2015,106295,"2,000.00",Revenue,Lister Logic LTD,22431
Chorley Borough Council,http://statistics.data.gov.uk/id/local-authority/30UE,Central Support Services,1009,Health Environment & Neighbourhoods,Play Events,40181,Miscellaneous Expenses,5034,Rock Climbing wall for Playday on Wed 5th August,23/09/2015,106295,500.00,Revenue,Lister Logic LTD,22431
Chorley Borough Council,http://statistics.data.gov.uk/id/local-authority/30UE,Service Management & Support,1009,Policy & Performance,Miscellaneous Expenses,40200,Miscellaneous Expenses,5034,Full page advert for the Chorley Flower Show,18/09/2015,105449,360.00,Revenue,Local Life 247 Ltd.,63624
Chorley Borough Council,http://statistics.data.gov.uk/id/local-authority/30UE,Democratic Represent and  Mgnt,1007,Streetscene & Leisure Contracts,Exhibitions & Special Events,40158,Miscellaneous Expenses,5034,"Collect artwork from Lyme Hall, Cheshire: Approx 70 small framed book illustrations (packed) Deliver to Astley Hall, Chorley",11/09/2015,105916,250.00,Revenue,M & G Transport and Technical Services,22443
Chorley Borough Council,http://statistics.data.gov.uk/id/local-authority/30UE,Elections,1012,Governance,Tools & Equipment - Maintenance,40005,"Equipment, Furniture & Materia",5023,service letter opener,23/09/2015,106303,337.00,Revenue,Mailopeners,20435
Chorley Borough Council,http://statistics.data.gov.uk/id/local-authority/30UE,Economic Development,1096,Economic Development,Exhibitions & Special Events,40158,Miscellaneous Expenses,5034,70 Student packed lunches and 260 buffet for Careers and Jobs Fair 10th Sept 2015.,30/09/2015,106346,"1,160.00",Revenue,Marcus Moore,21908
Chorley Borough Council,http://statistics.data.gov.uk/id/local-authority/30UE,Service Management & Support,1009,Policy & Performance,Miscellaneous Expenses,40200,Miscellaneous Expenses,5034,Photography at the Chorley Flower Show,18/09/2015,106033,300.00,Revenue,Martin Birchall Photography,22503
Chorley Borough Council,http://statistics.data.gov.uk/id/local-authority/30UE,Democratic Represent and  Mgnt,1007,HR & Org. Development,Agency Staff,13000,Direct Employee Expenses,5001,agency staff,04/09/2015,105570,475.45,Revenue,Matrix SCM Ltd,22128
Chorley Borough Council,http://statistics.data.gov.uk/id/local-authority/30UE,Unapportionable Central OHeads,1009,HR & Org. Development,Agency Staff,13000,Direct Employee Expenses,5001,agency staff,04/09/2015,105570,260.05,Revenue,Matrix SCM Ltd,22128
Chorley Borough Council,http://statistics.data.gov.uk/id/local-authority/30UE,Democratic Represent and  Mgnt,1007,HR & Org. Development,Agency Staff,13000,Direct Employee Expenses,5001,agency staff,04/09/2015,105717,316.20,Revenue,Matrix SCM Ltd,22128
Chorley Borough Council,http://statistics.data.gov.uk/id/local-authority/30UE,Unapportionable Central OHeads,1009,HR & Org. Development,Agency Staff,13000,Direct Employee Expenses,5001,agency staff,16/09/2015,105867,428.49,Revenue,Matrix SCM Ltd,22128
Chorley Borough Council,http://statistics.data.gov.uk/id/local-authority/30UE,Economic Development,1096,HR & Org. Development,Agency Staff,13000,Direct Employee Expenses,5001,agency staff,16/09/2015,105867,33.06,Revenue,Matrix SCM Ltd,22128
Chorley Borough Council,http://statistics.data.gov.uk/id/local-authority/30UE,Unapportionable Central OHeads,1009,HR & Org. Development,Agency Staff,13000,Direct Employee Expenses,5001,agency staff,16/09/2015,106101,342.78,Revenue,Matrix SCM Ltd,22128
Chorley Borough Council,http://statistics.data.gov.uk/id/local-authority/30UE,Unapportionable Central OHeads,1009,HR & Org. Development,Agency Staff,13000,Direct Employee Expenses,5001,agency staff,25/09/2015,106210,440.30,Revenue,Matrix SCM Ltd,22128
Chorley Borough Council,http://statistics.data.gov.uk/id/local-authority/30UE,Economic Development,1096,HR & Org. Development,Agency Staff,13000,Direct Employee Expenses,5001,agency staff,25/09/2015,106210,297.54,Revenue,Matrix SCM Ltd,22128
Chorley Borough Council,http://statistics.data.gov.uk/id/local-authority/30UE,Business Support,1095,Chief Executives Office,Miscellaneous Expenses,40200,Miscellaneous Expenses,5034,Starting in business grant payment,02/09/2015,105695,250.00,Revenue,NAME REDACTED,71582
Chorley Borough Council,http://statistics.data.gov.uk/id/local-authority/30UE,Unapportionable Central OHeads,1009,Governance,General Repairs - Reactive,20004,Repairs Maintenance & Alts,5005,Reactive blanket order until September 2015.,09/09/2015,105569,"1,587.50",Revenue,Maxigiene Environmental Services Ltd,67160
Chorley Borough Council,http://statistics.data.gov.uk/id/local-authority/30UE,Capital,Capital,Housing,Grants,3002,Capital Expenditure,Capital,INV 15542 Hall 3 Bagganley Lane / DFG,04/09/2015,105668,"3,339.27",Capital,Mint Northwest Ltd,65607
Chorley Borough Council,http://statistics.data.gov.uk/id/local-authority/30UE,Capital,Capital,Housing,Grants,3002,Capital Expenditure,Capital,Disabled adaptation,11/09/2015,105882,867.63,Capital,Mint Northwest Ltd,65607
Chorley Borough Council,http://statistics.data.gov.uk/id/local-authority/30UE,Private Sector HSG Renewal,1073,Housing,External Contractor,40198,Miscellaneous Expenses,5034,Minor adaptations,11/09/2015,106022,300.00,Revenue,Mobility Care Services,70841
Chorley Borough Council,http://statistics.data.gov.uk/id/local-authority/30UE,Private Sector HSG Renewal,1073,Housing,External Contractor,40198,Miscellaneous Expenses,5034,Minor adaptations,11/09/2015,106023,250.00,Revenue,Mobility Care Services,70841
Chorley Borough Council,http://statistics.data.gov.uk/id/local-authority/30UE,Capital,Capital,Streetscene & Leisure Contracts,Main Contractor,3007,Capital Expenditure,Capital,Re-hang of Great Hall paintings following conservation works Friday 4th September 2 x technicians @ 150 per day ,16/09/2015,106143,300.00,Capital,Mr John Critchley,54930
Chorley Borough Council,http://statistics.data.gov.uk/id/local-authority/30UE,Business Support,1095,Economic Development,Grants To Other Organisations,40127,Grants and Subscriptions,5031,Shop floor grant,11/09/2015,105975,"5,000.00",Revenue,Mr Raju Ahmed (Bay Leaf Indian Restaurant),71750
Chorley Borough Council,http://statistics.data.gov.uk/id/local-authority/30UE,Service Management & Support,1009,Streetscene & Leisure Contracts,Refuse Collection,20037,Cleaning and Domestic Supplies,5012,Exchange of street cleaning waste skip 20 yard skip and 35yard skip  at price quoted removed from Bengal St depot,16/09/2015,105998,967.68,Revenue,Neales Waste Management,17583
Chorley Borough Council,http://statistics.data.gov.uk/id/local-authority/30UE,Service Management & Support,1009,Streetscene & Leisure Contracts,Refuse Collection,20037,Cleaning and Domestic Supplies,5012,Exchange of green waste 30 yard skip price quoted removed from Bengal St depot use this order 24/04/2015 to 31/03/2016,16/09/2015,105998,70.00,Revenue,Neales Waste Management,17583
Chorley Borough Council,http://statistics.data.gov.uk/id/local-authority/30UE,Service Management & Support,1009,Streetscene & Leisure Contracts,Refuse Collection,20037,Cleaning and Domestic Supplies,5012,Tonnage of green waste 35yard skip at price quoted removed from Bengal St depot this order from 24/04/2015 to 31/03/2016,16/09/2015,105998,877.96,Revenue,Neales Waste Management,17583
Chorley Borough Council,http://statistics.data.gov.uk/id/local-authority/30UE,Business Support,1095,Streetscene & Leisure Contracts,Refuse Collection,20037,Cleaning and Domestic Supplies,5012,yard 3 Chorley Market,16/09/2015,106000,690.00,Revenue,Neales Waste Management,17583
Chorley Borough Council,http://statistics.data.gov.uk/id/local-authority/30UE,Business Support,1095,Streetscene & Leisure Contracts,Refuse Collection,20037,Cleaning and Domestic Supplies,5012,Market Walk,16/09/2015,106001,270.00,Revenue,Neales Waste Management,17583
Chorley Borough Council,http://statistics.data.gov.uk/id/local-authority/30UE,Business Support,1095,Streetscene & Leisure Contracts,Refuse Collection,20037,Cleaning and Domestic Supplies,5012,Market Walk,16/09/2015,106002,"2,853.93",Revenue,Neales Waste Management,17583
Chorley Borough Council,http://statistics.data.gov.uk/id/local-authority/30UE,Central Support Services,1009,Health Environment & Neighbourhoods,Miscellaneous Expenses,40200,Miscellaneous Expenses,5034,"35 yard skip as normal deliver to Buckshaw Village Community Centre, Unity Place, Buckshaw on Saturday 22nd Aug 15",11/09/2015,106004,375.56,Revenue,Neales Waste Management,17583
Chorley Borough Council,http://statistics.data.gov.uk/id/local-authority/30UE,Service Management & Support,1009,Streetscene & Leisure Contracts,Refuse Collection,20037,Cleaning and Domestic Supplies,5012,WASTE,25/09/2015,106352,302.40,Revenue,Neales Waste Management,17583
Chorley Borough Council,http://statistics.data.gov.uk/id/local-authority/30UE,Service Management & Support,1009,Streetscene & Leisure Contracts,Refuse Collection,20037,Cleaning and Domestic Supplies,5012,WASTE,25/09/2015,106353,302.40,Revenue,Neales Waste Management,17583
Chorley Borough Council,http://statistics.data.gov.uk/id/local-authority/30UE,Democratic Represent and  Mgnt,1007,Streetscene & Leisure Contracts,Burglar Alarms & Security Systems,20075,Fixtures and Fittings,5010,"Kenwood TK3000T2 hand portable radio, complete battery, antenna & single battery charger programmed to our frequencies",09/09/2015,105786,"1,258.00",Revenue,Nine Hundred Communications,51033
Chorley Borough Council,http://statistics.data.gov.uk/id/local-authority/30UE,Democratic Represent and  Mgnt,1007,Streetscene & Leisure Contracts,Supplies-Grounds Maintenance,40025,"Equipment, Furniture & Materia",5023,curtains,18/09/2015,105265,"2,688.00",Revenue,Nixon Hire Extra,71109
Chorley Borough Council,http://statistics.data.gov.uk/id/local-authority/30UE,Service Management & Support,1009,Streetscene & Leisure Contracts,Vehicle Maintenance,30045,Direct Transport Costs,5016,Supply channel brushes for Johnston VT651 as previously ordered,09/09/2015,105967,356.93,Revenue,Northern Municipal Spares Ltd,17752
Chorley Borough Council,http://statistics.data.gov.uk/id/local-authority/30UE,Service Management & Support,1009,Streetscene & Leisure Contracts,Vehicle Maintenance,30045,Direct Transport Costs,5016,Supply Polywire sweeper brushes for Chorley Council,30/09/2015,105968,356.93,Revenue,Northern Municipal Spares Ltd,17752
Chorley Borough Council,http://statistics.data.gov.uk/id/local-authority/30UE,Service Management & Support,1009,Streetscene & Leisure Contracts,Vehicle Maintenance,30045,Direct Transport Costs,5016,Supply poly wire sweeper brushes for Swingo 200,09/09/2015,105995,214.40,Revenue,Northern Municipal Spares Ltd,17752
Chorley Borough Council,http://statistics.data.gov.uk/id/local-authority/30UE,Service Management & Support,1009,Streetscene & Leisure Contracts,Vehicle Maintenance,30045,Direct Transport Costs,5016,Supply Poly wire sweeper brushes for Swingo 200,09/09/2015,105995,316.00,Revenue,Northern Municipal Spares Ltd,17752
Chorley Borough Council,http://statistics.data.gov.uk/id/local-authority/30UE,Central Support Services,1009,"Customer, ICT & Transactional",Consultants` Fees,40077,Services,5027,Upgrade of I@W DOL Sale - Thursday 3rd September,09/09/2015,105626,500.00,Revenue,Northgate Public Services (UK) Limited,18285
Chorley Borough Council,http://statistics.data.gov.uk/id/local-authority/30UE,Service Management & Support,1009,Streetscene & Leisure Contracts,Hire Of Transport,30028,Contrct Hire & Operating Lease,5018,Hire of 17 seater minibus for Britain in bloom judging for 6th August 2014 for one day to be del previous night for early start.,02/09/2015,105203,75.64,Revenue,Northgate Vehicle Hire (NW) Ltd,17360
Chorley Borough Council,http://statistics.data.gov.uk/id/local-authority/30UE,Service Management & Support,1009,Streetscene & Leisure Contracts,Hire Of Transport,30028,Contrct Hire & Operating Lease,5018,Hire of Ford Transit crewcab tipper NK13YPT 30/04/2015 - 31/03/2016,02/09/2015,105203,509.29,Revenue,Northgate Vehicle Hire (NW) Ltd,17360
Chorley Borough Council,http://statistics.data.gov.uk/id/local-authority/30UE,Service Management & Support,1009,Streetscene & Leisure Contracts,Hire Of Transport,30028,Contrct Hire & Operating Lease,5018,Hire of Ford Transit crewcab tipper NL12OFG  30/04/2015 - 31/03/2016,02/09/2015,105203,522.57,Revenue,Northgate Vehicle Hire (NW) Ltd,17360
Chorley Borough Council,http://statistics.data.gov.uk/id/local-authority/30UE,Service Management & Support,1009,Streetscene & Leisure Contracts,Hire Of Transport,30028,Contrct Hire & Operating Lease,5018,Hire of Ford Transit crewcab tipper NL12ONR 30/04/2015 - 31/03/2016,02/09/2015,105203,522.57,Revenue,Northgate Vehicle Hire (NW) Ltd,17360
Chorley Borough Council,http://statistics.data.gov.uk/id/local-authority/30UE,Service Management & Support,1009,Streetscene & Leisure Contracts,Hire Of Transport,30028,Contrct Hire & Operating Lease,5018,Hire of Ford Transit tipper NJ10OVN 30/04/2015 - 31/03/2016,02/09/2015,105203,407.43,Revenue,Northgate Vehicle Hire (NW) Ltd,17360
Chorley Borough Council,http://statistics.data.gov.uk/id/local-authority/30UE,Service Management & Support,1009,Streetscene & Leisure Contracts,Hire Of Transport,30028,Contrct Hire & Operating Lease,5018,Hire of Ford Transit tipper NJ10OTK 30/04/2015 - 31/03/2016,02/09/2015,105203,407.43,Revenue,Northgate Vehicle Hire (NW) Ltd,17360
Chorley Borough Council,http://statistics.data.gov.uk/id/local-authority/30UE,Service Management & Support,1009,Streetscene & Leisure Contracts,Hire Of Transport,30028,Contrct Hire & Operating Lease,5018,Hire of Ford Transit tipper NK13YNV 30/04/2015 - 31/03/2016,02/09/2015,105203,428.60,Revenue,Northgate Vehicle Hire (NW) Ltd,17360
Chorley Borough Council,http://statistics.data.gov.uk/id/local-authority/30UE,Service Management & Support,1009,Streetscene & Leisure Contracts,Hire Of Transport,30028,Contrct Hire & Operating Lease,5018,KN63 AYG,02/09/2015,105203,10.89,Revenue,Northgate Vehicle Hire (NW) Ltd,17360
Chorley Borough Council,http://statistics.data.gov.uk/id/local-authority/30UE,Service Management & Support,1009,Streetscene & Leisure Contracts,Hire Of Transport,30028,Contrct Hire & Operating Lease,5018,NJ10OXG,02/09/2015,105203,407.43,Revenue,Northgate Vehicle Hire (NW) Ltd,17360
Chorley Borough Council,http://statistics.data.gov.uk/id/local-authority/30UE,Service Management & Support,1009,Streetscene & Leisure Contracts,Hire Of Transport,30028,Contrct Hire & Operating Lease,5018,ND12 TLX,02/09/2015,105203,48.40,Revenue,Northgate Vehicle Hire (NW) Ltd,17360
Chorley Borough Council,http://statistics.data.gov.uk/id/local-authority/30UE,Service Management & Support,1009,Streetscene & Leisure Contracts,Hire Of Transport,30028,Contrct Hire & Operating Lease,5018,ND63YEG,02/09/2015,105203,413.81,Revenue,Northgate Vehicle Hire (NW) Ltd,17360
Chorley Borough Council,http://statistics.data.gov.uk/id/local-authority/30UE,Service Management & Support,1009,Streetscene & Leisure Contracts,Hire Of Transport,30028,Contrct Hire & Operating Lease,5018,Hire of Ford Transit tipper NJ10OXG from 30/04/2015 to 31/03/2016 please use this order from the dates requested,30/09/2015,105798,407.43,Revenue,Northgate Vehicle Hire (NW) Ltd,17360
Chorley Borough Council,http://statistics.data.gov.uk/id/local-authority/30UE,Service Management & Support,1009,Streetscene & Leisure Contracts,Hire Of Transport,30028,Contrct Hire & Operating Lease,5018,Hire of Ford Transit crewcab tipper NK13YPT 30/04/2015 - 31/03/2016,30/09/2015,105798,509.29,Revenue,Northgate Vehicle Hire (NW) Ltd,17360
Chorley Borough Council,http://statistics.data.gov.uk/id/local-authority/30UE,Service Management & Support,1009,Streetscene & Leisure Contracts,Hire Of Transport,30028,Contrct Hire & Operating Lease,5018,Hire of Ford Transit crewcab tipper NL12OFG  30/04/2015 - 31/03/2016,30/09/2015,105798,522.57,Revenue,Northgate Vehicle Hire (NW) Ltd,17360
Chorley Borough Council,http://statistics.data.gov.uk/id/local-authority/30UE,Service Management & Support,1009,Streetscene & Leisure Contracts,Hire Of Transport,30028,Contrct Hire & Operating Lease,5018,Hire of Ford Transit crewcab tipper NL12ONR 30/04/2015 - 31/03/2016,30/09/2015,105798,522.57,Revenue,Northgate Vehicle Hire (NW) Ltd,17360
Chorley Borough Council,http://statistics.data.gov.uk/id/local-authority/30UE,Service Management & Support,1009,Streetscene & Leisure Contracts,Hire Of Transport,30028,Contrct Hire & Operating Lease,5018,Hire of Ford Transit tipper NJ10OVN 30/04/2015 - 31/03/2016,30/09/2015,105798,407.43,Revenue,Northgate Vehicle Hire (NW) Ltd,17360
Chorley Borough Council,http://statistics.data.gov.uk/id/local-authority/30UE,Service Management & Support,1009,Streetscene & Leisure Contracts,Hire Of Transport,30028,Contrct Hire & Operating Lease,5018,Hire of Ford Transit tipper NJ10OTK 30/04/2015 - 31/03/2016,30/09/2015,105798,249.71,Revenue,Northgate Vehicle Hire (NW) Ltd,17360
Chorley Borough Council,http://statistics.data.gov.uk/id/local-authority/30UE,Service Management & Support,1009,Streetscene & Leisure Contracts,Hire Of Transport,30028,Contrct Hire & Operating Lease,5018,Hire of Ford Transit tipper NK13YNV 30/04/2015 - 31/03/2016,30/09/2015,105798,428.60,Revenue,Northgate Vehicle Hire (NW) Ltd,17360
Chorley Borough Council,http://statistics.data.gov.uk/id/local-authority/30UE,Service Management & Support,1009,Streetscene & Leisure Contracts,Hire Of Transport,30028,Contrct Hire & Operating Lease,5018,NA12 JFX 1.5 WEEK,30/09/2015,105798,157.71,Revenue,Northgate Vehicle Hire (NW) Ltd,17360
Chorley Borough Council,http://statistics.data.gov.uk/id/local-authority/30UE,Service Management & Support,1009,Streetscene & Leisure Contracts,Hire Of Transport,30028,Contrct Hire & Operating Lease,5018,NK13 YNV,30/09/2015,105798,413.81,Revenue,Northgate Vehicle Hire (NW) Ltd,17360
Chorley Borough Council,http://statistics.data.gov.uk/id/local-authority/30UE,Parking Services,1066,Governance,Electricity,20013,Energy Costs,5006,Unmetered car park light,16/09/2015,105574,1.03,Revenue,Npower Commercial Gas,16814
Chorley Borough Council,http://statistics.data.gov.uk/id/local-authority/30UE,Parking Services,1066,Governance,Electricity,20013,Energy Costs,5006,Pay and Display,16/09/2015,105574,103.40,Revenue,Npower Commercial Gas,16814
Chorley Borough Council,http://statistics.data.gov.uk/id/local-authority/30UE,Culture & Heritage,1036,Governance,Electricity,20013,Energy Costs,5006,cctv,16/09/2015,105574,255.19,Revenue,Npower Commercial Gas,16814
Chorley Borough Council,http://statistics.data.gov.uk/id/local-authority/30UE,Culture & Heritage,1036,Governance,Electricity,20013,Energy Costs,5006,electric,16/09/2015,105987,255.78,Revenue,Npower Commercial Gas,16814
Chorley Borough Council,http://statistics.data.gov.uk/id/local-authority/30UE,Parking Services,1066,Governance,Electricity,20013,Energy Costs,5006,electric,16/09/2015,105987,1.03,Revenue,Npower Commercial Gas,16814
Chorley Borough Council,http://statistics.data.gov.uk/id/local-authority/30UE,Parking Services,1066,Governance,Electricity,20013,Energy Costs,5006,electric,16/09/2015,105987,103.40,Revenue,Npower Commercial Gas,16814
Chorley Borough Council,http://statistics.data.gov.uk/id/local-authority/30UE,Corporate Management,1008,Governance,Electricity,20013,Energy Costs,5006,Cemetry chapel,25/09/2015,106078,7.11,Revenue,Npower Commercial Gas,16814
Chorley Borough Council,http://statistics.data.gov.uk/id/local-authority/30UE,Unapportionable Central OHeads,1009,Governance,Electricity,20013,Energy Costs,5006,Bengal street,25/09/2015,106078,527.09,Revenue,Npower Commercial Gas,16814
Chorley Borough Council,http://statistics.data.gov.uk/id/local-authority/30UE,Unapportionable Central OHeads,1009,Governance,Electricity,20013,Energy Costs,5006,Town Hall,25/09/2015,106078,"1,810.46",Revenue,Npower Commercial Gas,16814
Chorley Borough Council,http://statistics.data.gov.uk/id/local-authority/30UE,Unapportionable Central OHeads,1009,Governance,Electricity,20013,Energy Costs,5006,Civic offices,25/09/2015,106078,"3,148.28",Revenue,Npower Commercial Gas,16814
Chorley Borough Council,http://statistics.data.gov.uk/id/local-authority/30UE,Homelessness,1075,Governance,Electricity,20013,Energy Costs,5006,Cotswold house,25/09/2015,106078,270.52,Revenue,Npower Commercial Gas,16814
Chorley Borough Council,http://statistics.data.gov.uk/id/local-authority/30UE,Business Support,1095,Governance,Electricity,20013,Energy Costs,5006,Market Street,25/09/2015,106078,17.37,Revenue,Npower Commercial Gas,16814
Chorley Borough Council,http://statistics.data.gov.uk/id/local-authority/30UE,Democratic Represent and  Mgnt,1007,Governance,Electricity,20013,Energy Costs,5006,Astley Hall Farm,25/09/2015,106078,230.23,Revenue,Npower Commercial Gas,16814
Chorley Borough Council,http://statistics.data.gov.uk/id/local-authority/30UE,Business Support,1095,Governance,Electricity,20013,Energy Costs,5006,Market Street,25/09/2015,106078,120.29,Revenue,Npower Commercial Gas,16814
Chorley Borough Council,http://statistics.data.gov.uk/id/local-authority/30UE,Democratic Represent and  Mgnt,1007,Governance,Electricity,20013,Energy Costs,5006,Tatton recreation ground,25/09/2015,106281,73.75,Revenue,Npower Commercial Gas,16814
Chorley Borough Council,http://statistics.data.gov.uk/id/local-authority/30UE,Democratic Represent and  Mgnt,1007,Governance,Electricity,20013,Energy Costs,5006,Astley Hall,25/09/2015,106281,119.89,Revenue,Npower Commercial Gas,16814
Chorley Borough Council,http://statistics.data.gov.uk/id/local-authority/30UE,Community Development,1097,Governance,Electricity,20013,Energy Costs,5006,35-39 Market Street,25/09/2015,106281,85.21,Revenue,Npower Commercial Gas,16814
Chorley Borough Council,http://statistics.data.gov.uk/id/local-authority/30UE,Democratic Represent and  Mgnt,1007,Governance,Electricity,20013,Energy Costs,5006,Astley Hall Coach House,25/09/2015,106281,"2,356.36",Revenue,Npower Commercial Gas,16814
Chorley Borough Council,http://statistics.data.gov.uk/id/local-authority/30UE,Democratic Represent and  Mgnt,1007,Governance,Electricity,20013,Energy Costs,5006,Astley Park changing rooms,25/09/2015,106281,704.34,Revenue,Npower Commercial Gas,16814
Chorley Borough Council,http://statistics.data.gov.uk/id/local-authority/30UE,Economic Development,1096,Governance,Electricity,20013,Energy Costs,5006,Clifford Street,25/09/2015,106281,149.95,Revenue,Npower Commercial Gas,16814
Chorley Borough Council,http://statistics.data.gov.uk/id/local-authority/30UE,Unapportionable Central OHeads,1009,Governance,Electricity,20013,Energy Costs,5006,Civic offices,25/09/2015,106281,"3,155.97",Revenue,Npower Commercial Gas,16814
Chorley Borough Council,http://statistics.data.gov.uk/id/local-authority/30UE,Unapportionable Central OHeads,1009,Governance,Electricity,20013,Energy Costs,5006,Bengal street,25/09/2015,106281,528.15,Revenue,Npower Commercial Gas,16814
Chorley Borough Council,http://statistics.data.gov.uk/id/local-authority/30UE,Unapportionable Central OHeads,1009,Governance,Electricity,20013,Energy Costs,5006,Town Hall,25/09/2015,106281,"1,814.84",Revenue,Npower Commercial Gas,16814
Chorley Borough Council,http://statistics.data.gov.uk/id/local-authority/30UE,Homelessness,1075,Governance,Electricity,20013,Energy Costs,5006,Cotswold House,25/09/2015,106281,323.15,Revenue,Npower Commercial Gas,16814
Chorley Borough Council,http://statistics.data.gov.uk/id/local-authority/30UE,Homelessness,1075,Governance,Electricity,20013,Energy Costs,5006,Cotswold House,25/09/2015,106281,227.33,Revenue,Npower Commercial Gas,16814
Chorley Borough Council,http://statistics.data.gov.uk/id/local-authority/30UE,Homelessness,1075,Governance,Electricity,20013,Energy Costs,5006,Cotswold House,25/09/2015,106281,73.92,Revenue,Npower Commercial Gas,16814
Chorley Borough Council,http://statistics.data.gov.uk/id/local-authority/30UE,Homelessness,1075,Governance,Electricity,20013,Energy Costs,5006,Cotswold House,25/09/2015,106281,209.73,Revenue,Npower Commercial Gas,16814
Chorley Borough Council,http://statistics.data.gov.uk/id/local-authority/30UE,Homelessness,1075,Governance,Electricity,20013,Energy Costs,5006,Cotswlod House,25/09/2015,106281,84.85,Revenue,Npower Commercial Gas,16814
Chorley Borough Council,http://statistics.data.gov.uk/id/local-authority/30UE,Homelessness,1075,Governance,Electricity,20013,Energy Costs,5006,Cotswold House,25/09/2015,106281,#NAME?,Revenue,Npower Commercial Gas,16814
Chorley Borough Council,http://statistics.data.gov.uk/id/local-authority/30UE,Homelessness,1075,Governance,Electricity,20013,Energy Costs,5006,Cotswold House,25/09/2015,106281,#NAME?,Revenue,Npower Commercial Gas,16814
Chorley Borough Council,http://statistics.data.gov.uk/id/local-authority/30UE,Homelessness,1075,Governance,Electricity,20013,Energy Costs,5006,Cotswold Hosue,25/09/2015,106281,#NAME?,Revenue,Npower Commercial Gas,16814
Chorley Borough Council,http://statistics.data.gov.uk/id/local-authority/30UE,Homelessness,1075,Governance,Electricity,20013,Energy Costs,5006,Cotswold Hosue,25/09/2015,106281,#NAME?,Revenue,Npower Commercial Gas,16814
Chorley Borough Council,http://statistics.data.gov.uk/id/local-authority/30UE,Parking Services,1066,Streetscene & Leisure Contracts,External Contractors,50008,Private Contractors,5042,"?Provision of off street car park enforcement, cash collection, cash counting facilities and third party bulk cash collections?",09/09/2015,105862,"3,570.34",Revenue,NSL Limited,67253
Chorley Borough Council,http://statistics.data.gov.uk/id/local-authority/30UE,Unapportionable Central OHeads,1009,"Customer, ICT & Transactional",Stationery,40050,"Printing, Stationery & General",5026,"162x235mm WHITE WINDOW PRINTED GUMMED MAIL WALLET ENVELOPES PRINTED DNR 2 x delivery of 5,000",18/09/2015,106245,491.60,Revenue,Opal Envelopes Ltd,19356
Chorley Borough Council,http://statistics.data.gov.uk/id/local-authority/30UE,Business Support,1095,Governance,Electricity,20013,Energy Costs,5006,Energy Costs,09/09/2015,105648,"3,959.80",Revenue,Opus Energy Ltd,65093
Chorley Borough Council,http://statistics.data.gov.uk/id/local-authority/30UE,Business Support,1095,Governance,Electricity,20013,Energy Costs,5006,Energy Costs,11/09/2015,105833,716.40,Revenue,Opus Energy Ltd,65093
Chorley Borough Council,http://statistics.data.gov.uk/id/local-authority/30UE,Democratic Represent and  Mgnt,1007,Governance,Performing Rights Society Fees,40148,Grants and Subscriptions,5031,Charges for period 6th April 2015 to 5th July 2015,11/09/2015,105972,521.37,Revenue,Performing Right Society Ltd,19909
Chorley Borough Council,http://statistics.data.gov.uk/id/local-authority/30UE,Central Support Services,1009,Health Environment & Neighbourhoods,External Contractor,40198,Miscellaneous Expenses,5034,Pest control services from April 1st 2015 up to and inclusive March 31st 2016,09/09/2015,105838,323.83,Revenue,Peter L Johnson,16727
Chorley Borough Council,http://statistics.data.gov.uk/id/local-authority/30UE,Central Support Services,1009,Health Environment & Neighbourhoods,External Contractor,40198,Miscellaneous Expenses,5034,Pest control services from April 1st 2015 up to and inclusive March 31st 2016,18/09/2015,106244,323.83,Revenue,Peter L Johnson,16727
Chorley Borough Council,http://statistics.data.gov.uk/id/local-authority/30UE,Central Support Services,1009,Health Environment & Neighbourhoods,External Contractor,40198,Miscellaneous Expenses,5034,Pest control services,18/09/2015,106260,323.83,Revenue,Peter L Johnson,16727
Chorley Borough Council,http://statistics.data.gov.uk/id/local-authority/30UE,Unapportionable Central OHeads,1009,"Customer, ICT & Transactional",Service Fees,40056,Services,5027,Background music Tariff - 3 waiting rooms/reception areas (PPLPP085) period 14.10.2015 to 13.10.2016 Civic offices,25/09/2015,106290,361.02,Revenue,Phonographic Performance Limited,21456
Chorley Borough Council,http://statistics.data.gov.uk/id/local-authority/30UE,Unapportionable Central OHeads,1009,"Customer, ICT & Transactional",Service Fees,40056,Services,5027,Background Music Tariff - Telephone music on hold (PPLPP084) Civic Offices Union Street Period  14.10.2015 13.10.2016,25/09/2015,106290,255.24,Revenue,Phonographic Performance Limited,21456
Chorley Borough Council,http://statistics.data.gov.uk/id/local-authority/30UE,Unapportionable Central OHeads,1009,Governance,Asset Maintenance Fund,20012,Repairs Maintenance & Alts,5005,"Office Furniture as per your revised quotation - 3 on 13 August 2015 for Office 1 (Leader of the Council), ",18/09/2015,106241,"6,339.00",Revenue,Planscape Business Interiors Ltd,69451
Chorley Borough Council,http://statistics.data.gov.uk/id/local-authority/30UE,Homelessness,1075,Housing,Training Course Fees,17010,Indirect Employee Expenses,5002,1 days training on the Johnson Supreme Court judgment on 8th July 15. Mileage Cardiff to Preston and return Hotel & subs,02/09/2015,105664,254.17,Revenue,Preston City Council,16657
Chorley Borough Council,http://statistics.data.gov.uk/id/local-authority/30UE,Service Management & Support,1009,Policy & Performance,Miscellaneous Expenses,40200,Miscellaneous Expenses,5034,Miscellaneous Expenses,18/09/2015,106130,"3,000.00",Revenue,Prime Performers Limited,70499
Chorley Borough Council,http://statistics.data.gov.uk/id/local-authority/30UE,Elections,1012,Governance,Postages,40082,Communication and Computing,5028,Postage for 1 HEF reminder,02/09/2015,105779,"5,246.43",Revenue,Print Image Facilities LLP,57870
Chorley Borough Council,http://statistics.data.gov.uk/id/local-authority/30UE,Elections,1012,Governance,Postages,40082,Communication and Computing,5028,Annual Canvass - first ITR`s,18/09/2015,106168,"1,183.09",Revenue,Print Image Facilities LLP,57870
Chorley Borough Council,http://statistics.data.gov.uk/id/local-authority/30UE,Elections,1012,Governance,Printing,40043,"Printing, Stationery & General",5026,"HEF`s for Canvass 2015 initial mailing 48,5001st reminder 24,2502nd reminder 12,1253rd reminder 4850",23/09/2015,106288,"8,641.60",Revenue,Print Image Network,21171
Chorley Borough Council,http://statistics.data.gov.uk/id/local-authority/30UE,Service Management & Support,1009,Streetscene & Leisure Contracts,Supplies-Grounds Maintenance,40025,"Equipment, Furniture & Materia",5023,255m of turf to be delivered to the football pitch Wigan Lane PR7 4BY (turn down track at side of Londonderry Cottage) ,23/09/2015,106299,420.75,Revenue,R H F Turf,17990
Chorley Borough Council,http://statistics.data.gov.uk/id/local-authority/30UE,Central Support Services,1009,Health Environment & Neighbourhoods,Hire Of Transport,30028,Contrct Hire & Operating Lease,5018,Hire of coach on Monday 24th August.  Return Transport from Chorley to Manchester Sportcity,02/09/2015,105769,375.00,Revenue,R S Tyrer Ltd,16255
Chorley Borough Council,http://statistics.data.gov.uk/id/local-authority/30UE,Business Support,1095,Economic Development,Miscellaneous Expenses,40200,Miscellaneous Expenses,5034,Business grant,25/09/2015,106199,250.00,Revenue,NAME REDACTED,71757
Chorley Borough Council,http://statistics.data.gov.uk/id/local-authority/30UE,Democratic Represent and  Mgnt,1007,Streetscene & Leisure Contracts,Exhibitions & Special Events,40158,Miscellaneous Expenses,5034,Hire of Gruffalo costume Sat 19th September 2015,25/09/2015,104919,"2,100.00",Revenue,Rainbow Productions Ltd,21858
Chorley Borough Council,http://statistics.data.gov.uk/id/local-authority/30UE,Business Support,1095,Economic Development,Miscellaneous Expenses,40200,Miscellaneous Expenses,5034,Starting in Business grant payment,11/09/2015,105946,250.00,Revenue,NAME REDACTED,71749
Chorley Borough Council,http://statistics.data.gov.uk/id/local-authority/30UE,Central Support Services,1009,Governance,Training Course Fees,17010,Indirect Employee Expenses,5002,Please book three candidates on 10 courses as per attached list.  Member Nos. NAMES REDACTED,30/09/2015,106317,250.00,Revenue,RICS Business Services Ltd,17439
Chorley Borough Council,http://statistics.data.gov.uk/id/local-authority/30UE,Service Management & Support,1009,Streetscene & Leisure Contracts,Supplies-Grounds Maintenance,40025,"Equipment, Furniture & Materia",5023,40 x 5 ltr Trustee Amenity Glyphosate,09/09/2015,105832,"1,060.00",Revenue,Rigby Taylor Ltd,16299
Chorley Borough Council,http://statistics.data.gov.uk/id/local-authority/30UE,Central Support Services,1009,Health Environment & Neighbourhoods,Children's Activities,40188,Miscellaneous Expenses,5034,Delivery of Fencing Coaching on Thursday 20th and Friday 21st August,18/09/2015,106164,300.00,Revenue,Rivington Park Fencing Club,53421
Chorley Borough Council,http://statistics.data.gov.uk/id/local-authority/30UE,Elections,1012,Governance,Postages,40082,Communication and Computing,5028,Business reply mail from April 2015 - March 2016 for RRHA KZCB CAXA,11/09/2015,105567,"1,898.13",Revenue,Royal Mail Group Plc,17522
Chorley Borough Council,http://statistics.data.gov.uk/id/local-authority/30UE,Elections,1012,Governance,Postages,40082,Communication and Computing,5028,Business reply mail from April 2015 - March 2016 for RRHA KZCB CAXA,23/09/2015,106277,"1,396.06",Revenue,Royal Mail Group Plc,17522
Chorley Borough Council,http://statistics.data.gov.uk/id/local-authority/30UE,Business Support,1095,Economic Development,Miscellaneous Expenses,40200,Miscellaneous Expenses,5034,Employment Support Fund administered by Runshaw College,16/09/2015,105892,"10,000.00",Revenue,Runshaw College,17997
Chorley Borough Council,http://statistics.data.gov.uk/id/local-authority/30UE,Service Management & Support,1009,Streetscene & Leisure Contracts,Diesel/Derv,30007,Direct Transport Costs,5016,"Supply fuel to Bengal St depot as per your quote via the chest 8000 Litres of road diesel4000 Litres of gas oil",30/09/2015,105961,"7,012.00",Revenue,Samuel Cooke & Co Ltd,17173
Chorley Borough Council,http://statistics.data.gov.uk/id/local-authority/30UE,Service Management & Support,1009,Streetscene & Leisure Contracts,Diesel/Derv,30007,Direct Transport Costs,5016,"Supply fuel to Bengal St depot as per your quote via the chest 8000 Litres of road diesel4000 Litres of gas oil",30/09/2015,105962,"1,634.00",Revenue,Samuel Cooke & Co Ltd,17173
Chorley Borough Council,http://statistics.data.gov.uk/id/local-authority/30UE,Homelessness,1075,Housing,External Contractor,40198,Miscellaneous Expenses,5034,"Concierge Service at Cotswold Supported Housing, Cotswold Road, Chorley, Lancashire, PR7 3HW. ",09/09/2015,105712,"2,101.48",Revenue,Sector Security Services,19269
Chorley Borough Council,http://statistics.data.gov.uk/id/local-authority/30UE,Homelessness,1075,Housing,External Contractor,40198,Miscellaneous Expenses,5034,"Concierge Service at Cotswold Supported Housing, Cotswold Road, Chorley, Lancashire, PR7 3HW. ",25/09/2015,106096,"2,241.42",Revenue,Sector Security Services,19269
Chorley Borough Council,http://statistics.data.gov.uk/id/local-authority/30UE,Business Support,1095,Economic Development,Security Service,40062,Services,5027,To provide Security Services to MWSC August 2015,09/09/2015,105731,"5,616.02",Revenue,Securitas Security Services (UK) Ltd,70693
Chorley Borough Council,http://statistics.data.gov.uk/id/local-authority/30UE,Central Support Services,1009,Streetscene & Leisure Contracts,Miscellaneous Expenses,40200,Miscellaneous Expenses,5034,Harding St carpark,23/09/2015,106265,380.00,Revenue,Shiloh Surfacing,61457
Chorley Borough Council,http://statistics.data.gov.uk/id/local-authority/30UE,Democratic Represent and  Mgnt,1007,Governance,Miscellaneous Expenses,40200,Miscellaneous Expenses,5034,"25 headsets, music playlist, delivery, set up and support for the Local Democracy Day at the Town Hall ",23/09/2015,106314,320.00,Revenue,Silent Noize Events,67599
Chorley Borough Council,http://statistics.data.gov.uk/id/local-authority/30UE,Service Management & Support,1009,Policy & Performance,Miscellaneous Expenses,40200,Miscellaneous Expenses,5034,Hire of radios for Chorley Flower Show,18/09/2015,105428,260.00,Revenue,Sitelink Communications Ltd,53286
Chorley Borough Council,http://statistics.data.gov.uk/id/local-authority/30UE,Service Management & Support,1009,Streetscene & Leisure Contracts,Protective Clothing,40040,"Clothing, Uniforms and Laundry",5025,Yellow Hi Vis 3/4 length jacket c/w Chorley Council logo screen print front & back. Size = Medium. Product Code = CSR30,30/09/2015,106324,29.30,Revenue,Smart Image Workwear,21064
Chorley Borough Council,http://statistics.data.gov.uk/id/local-authority/30UE,Service Management & Support,1009,Streetscene & Leisure Contracts,Protective Clothing,40040,"Clothing, Uniforms and Laundry",5025,Yellow Hi Vis 3/4 length jacket c/w Chorley Council logo screen print front & back.  Size = Large. Product Code = CSR30,30/09/2015,106324,29.30,Revenue,Smart Image Workwear,21064
Chorley Borough Council,http://statistics.data.gov.uk/id/local-authority/30UE,Service Management & Support,1009,Streetscene & Leisure Contracts,Protective Clothing,40040,"Clothing, Uniforms and Laundry",5025,Yellow Hi Vis 3/4 length jacket c/w Chorley Council logo screen print front & back.  Size = X Large. Product Code = CSR30,30/09/2015,106324,29.30,Revenue,Smart Image Workwear,21064
Chorley Borough Council,http://statistics.data.gov.uk/id/local-authority/30UE,Service Management & Support,1009,Streetscene & Leisure Contracts,Protective Clothing,40040,"Clothing, Uniforms and Laundry",5025,Yellow Hi Vis 3/4 length jacket c/w Chorley Council logo screen printed front & back.  Size = XXL.  Product Code = CSR30,30/09/2015,106324,29.30,Revenue,Smart Image Workwear,21064
Chorley Borough Council,http://statistics.data.gov.uk/id/local-authority/30UE,Service Management & Support,1009,Streetscene & Leisure Contracts,Protective Clothing,40040,"Clothing, Uniforms and Laundry",5025,High Vis Yellow Waterproof Bomber Jacket Chorley Council logo screen print front & back.  Size = Med Product Code ,30/09/2015,106324,43.35,Revenue,Smart Image Workwear,21064
Chorley Borough Council,http://statistics.data.gov.uk/id/local-authority/30UE,Service Management & Support,1009,Streetscene & Leisure Contracts,Protective Clothing,40040,"Clothing, Uniforms and Laundry",5025,High Vis Yellow Waterproof Bomber Jacket c/w Chorley Council logo screen printed front & back.  Size = Large. ,30/09/2015,106324,43.35,Revenue,Smart Image Workwear,21064
Chorley Borough Council,http://statistics.data.gov.uk/id/local-authority/30UE,Service Management & Support,1009,Streetscene & Leisure Contracts,Protective Clothing,40040,"Clothing, Uniforms and Laundry",5025,High Vis Yellow Waterproof Bomber Jacket c/w Chorley Council logo screen printed front & back.  Size = X Large.  ,30/09/2015,106324,43.35,Revenue,Smart Image Workwear,21064
Chorley Borough Council,http://statistics.data.gov.uk/id/local-authority/30UE,Service Management & Support,1009,Streetscene & Leisure Contracts,Protective Clothing,40040,"Clothing, Uniforms and Laundry",5025,High Vis Yellow Waterproof Bomber Jacket c/w Chorley Council logo screen printed front & back.  Size = XXL.  ,30/09/2015,106324,28.90,Revenue,Smart Image Workwear,21064
Chorley Borough Council,http://statistics.data.gov.uk/id/local-authority/30UE,Service Management & Support,1009,Streetscene & Leisure Contracts,Protective Clothing,40040,"Clothing, Uniforms and Laundry",5025,Uneek UC601 Zip Fleece.  Colour = Red.  c/w Chorley Council logo all white logo embroided on front.  Size = Medium.  ,30/09/2015,106324,22.30,Revenue,Smart Image Workwear,21064
Chorley Borough Council,http://statistics.data.gov.uk/id/local-authority/30UE,Service Management & Support,1009,Streetscene & Leisure Contracts,Protective Clothing,40040,"Clothing, Uniforms and Laundry",5025,Uneek UC 601 Zip Fleece Jacket.  Colour = Red c/w Chorley Council logo embroided on front.  Size = Large. ,30/09/2015,106324,33.45,Revenue,Smart Image Workwear,21064
Chorley Borough Council,http://statistics.data.gov.uk/id/local-authority/30UE,Service Management & Support,1009,Streetscene & Leisure Contracts,Protective Clothing,40040,"Clothing, Uniforms and Laundry",5025,Uneek UC 601 Zip Fleece Jacket.  Colour = Black  Size = Medium.  Product Code = CSR37,30/09/2015,106324,11.15,Revenue,Smart Image Workwear,21064
Chorley Borough Council,http://statistics.data.gov.uk/id/local-authority/30UE,Service Management & Support,1009,Streetscene & Leisure Contracts,Protective Clothing,40040,"Clothing, Uniforms and Laundry",5025,Black Beanie chunky knit hat c/w Chorley Council Logo.  Product Code = CSR46,30/09/2015,106324,57.00,Revenue,Smart Image Workwear,21064
Chorley Borough Council,http://statistics.data.gov.uk/id/local-authority/30UE,Service Management & Support,1009,Streetscene & Leisure Contracts,Protective Clothing,40040,"Clothing, Uniforms and Laundry",5025,"ORN Hawk Cargo Trousers.  Waist 32, regular leg.  Product Code = CSR38",30/09/2015,106325,64.50,Revenue,Smart Image Workwear,21064
Chorley Borough Council,http://statistics.data.gov.uk/id/local-authority/30UE,Service Management & Support,1009,Streetscene & Leisure Contracts,Protective Clothing,40040,"Clothing, Uniforms and Laundry",5025,"ORN Hawk Cargo Trouser.  34 Waist, regular leg.  Product Code CSR38",30/09/2015,106325,64.50,Revenue,Smart Image Workwear,21064
Chorley Borough Council,http://statistics.data.gov.uk/id/local-authority/30UE,Service Management & Support,1009,Streetscene & Leisure Contracts,Protective Clothing,40040,"Clothing, Uniforms and Laundry",5025,"ORN Hawk Cargo Trouser.  36 Waist, regular leg.  Product Code CSR38",30/09/2015,106325,64.50,Revenue,Smart Image Workwear,21064
Chorley Borough Council,http://statistics.data.gov.uk/id/local-authority/30UE,Service Management & Support,1009,Streetscene & Leisure Contracts,Protective Clothing,40040,"Clothing, Uniforms and Laundry",5025,"ORN Hawk Cargo Trouser.  38 Waist, regular leg.  Product Code CSR38",30/09/2015,106325,64.50,Revenue,Smart Image Workwear,21064
Chorley Borough Council,http://statistics.data.gov.uk/id/local-authority/30UE,Service Management & Support,1009,Streetscene & Leisure Contracts,Protective Clothing,40040,"Clothing, Uniforms and Laundry",5025,"ORN Hawk Cargo Trouser.  40 Waist, regular leg.  Product Code CSR38",30/09/2015,106325,64.50,Revenue,Smart Image Workwear,21064
Chorley Borough Council,http://statistics.data.gov.uk/id/local-authority/30UE,Unapportionable Central OHeads,1009,HR & Org. Development,Furniture - Purchase,40012,"Equipment, Furniture & Materia",5023,Sit/Stand Desk - Conset 501-7 117H (Beech) Silver Frame,23/09/2015,105486,360.84,Revenue,Somercourt Ltd,67048
Chorley Borough Council,http://statistics.data.gov.uk/id/local-authority/30UE,Corporate Management,1008,Health Environment & Neighbourhoods,Training Course Fees,17010,Indirect Employee Expenses,5002,Damp course for Reg Services officer at SRBC held on 4th June 15- SRBC ,04/09/2015,105748,359.63,Revenue,South Ribble Borough Council,17889
Chorley Borough Council,http://statistics.data.gov.uk/id/local-authority/30UE,Democratic Represent and  Mgnt,1007,Streetscene & Leisure Contracts,Supplies-Grounds Maintenance,40025,"Equipment, Furniture & Materia",5023,"Flower Show refreshments provided by Caf� Ambio for: Friday 31st July - Preview EveningMayor`s Afternoon Tea",02/09/2015,105738,346.42,Revenue,Southcott Catering Ltd,21842
Chorley Borough Council,http://statistics.data.gov.uk/id/local-authority/30UE,Democratic Represent and  Mgnt,1007,Governance,Grants To Other Organisations,40127,Grants and Subscriptions,5031,grant fund,25/09/2015,106402,250.00,Revenue,St Catherine`s Hospice Trading Limited,19138
Chorley Borough Council,http://statistics.data.gov.uk/id/local-authority/30UE,Unapportionable Central OHeads,1009,Governance,General Repairs - Reactive,20004,Repairs Maintenance & Alts,5005,Blanket reactive Aug-Dec 2015.,04/09/2015,105234,314.82,Revenue,Stringfellow Bldg Cntrctrs Ltd,17893
Chorley Borough Council,http://statistics.data.gov.uk/id/local-authority/30UE,Unapportionable Central OHeads,1009,Governance,General Repairs - Reactive,20004,Repairs Maintenance & Alts,5005,Blanket reactive Aug-Dec 2015.,18/09/2015,105608,"2,559.54",Revenue,Stringfellow Bldg Cntrctrs Ltd,17893
Chorley Borough Council,http://statistics.data.gov.uk/id/local-authority/30UE,Unapportionable Central OHeads,1009,Governance,General Repairs - Reactive,20004,Repairs Maintenance & Alts,5005,reactive,04/09/2015,105609,265.45,Revenue,Stringfellow Bldg Cntrctrs Ltd,17893
Chorley Borough Council,http://statistics.data.gov.uk/id/local-authority/30UE,Unapportionable Central OHeads,1009,Governance,General Repairs - Reactive,20004,Repairs Maintenance & Alts,5005,reactive,11/09/2015,105610,396.78,Revenue,Stringfellow Bldg Cntrctrs Ltd,17893
Chorley Borough Council,http://statistics.data.gov.uk/id/local-authority/30UE,Democratic Represent and  Mgnt,1007,Governance,Supplies-Grounds Maintenance,40025,"Equipment, Furniture & Materia",5023,Various works for Astley Park flower show.,04/09/2015,105615,"2,540.17",Revenue,Stringfellow Bldg Cntrctrs Ltd,17893
Chorley Borough Council,http://statistics.data.gov.uk/id/local-authority/30UE,Unapportionable Central OHeads,1009,Governance,General Repairs - Reactive,20004,Repairs Maintenance & Alts,5005,Blanket reactive Aug-Dec 2015.,09/09/2015,105736,271.89,Revenue,Stringfellow Bldg Cntrctrs Ltd,17893
Chorley Borough Council,http://statistics.data.gov.uk/id/local-authority/30UE,Unapportionable Central OHeads,1009,Governance,General Repairs - Reactive,20004,Repairs Maintenance & Alts,5005,Blanket reactive Aug-Dec 2015.,16/09/2015,105851,449.83,Revenue,Stringfellow Bldg Cntrctrs Ltd,17893
Chorley Borough Council,http://statistics.data.gov.uk/id/local-authority/30UE,Unapportionable Central OHeads,1009,Governance,General Repairs - Reactive,20004,Repairs Maintenance & Alts,5005,Blanket reactive Aug-Dec 2015.,16/09/2015,105869,546.46,Revenue,Stringfellow Bldg Cntrctrs Ltd,17893
Chorley Borough Council,http://statistics.data.gov.uk/id/local-authority/30UE,Capital,Capital,Housing,Grants,3002,Capital Expenditure,Capital,Disabled adaptation,09/09/2015,105883,"4,999.00",Capital,Stringfellow Bldg Cntrctrs Ltd,17893
Chorley Borough Council,http://statistics.data.gov.uk/id/local-authority/30UE,Unapportionable Central OHeads,1009,Governance,General Repairs - Reactive,20004,Repairs Maintenance & Alts,5005,Blanket reactive Aug-Dec 2015.,16/09/2015,105951,938.00,Revenue,Stringfellow Bldg Cntrctrs Ltd,17893
Chorley Borough Council,http://statistics.data.gov.uk/id/local-authority/30UE,Capital,Capital,Housing,Grants,3002,Capital Expenditure,Capital,DFG,18/09/2015,106160,"14,840.00",Capital,Stringfellow Bldg Cntrctrs Ltd,17893
Chorley Borough Council,http://statistics.data.gov.uk/id/local-authority/30UE,Unapportionable Central OHeads,1009,Governance,General Repairs - Reactive,20004,Repairs Maintenance & Alts,5005,REACTIVE,25/09/2015,106189,853.81,Revenue,Stringfellow Bldg Cntrctrs Ltd,17893
Chorley Borough Council,http://statistics.data.gov.uk/id/local-authority/30UE,Unapportionable Central OHeads,1009,Governance,General Repairs - Reactive,20004,Repairs Maintenance & Alts,5005,REACTIVE,25/09/2015,106249,337.00,Revenue,Stringfellow Bldg Cntrctrs Ltd,17893
Chorley Borough Council,http://statistics.data.gov.uk/id/local-authority/30UE,Business Support,1095,Economic Development,Grants To Other Organisations,40127,Grants and Subscriptions,5031,refurb grant,16/09/2015,106142,"3,000.00",Revenue,Style Design and Architecture Ltd,71716
Chorley Borough Council,http://statistics.data.gov.uk/id/local-authority/30UE,Economic Development,1096,Governance,Cleaning Materials,40019,"Equipment, Furniture & Materia",5023,Janitorial products for the Covered market toilets.,30/09/2015,106286,445.31,Revenue,Swiftkleen Ltd,17933
Chorley Borough Council,http://statistics.data.gov.uk/id/local-authority/30UE,Democratic Represent and  Mgnt,1007,Streetscene & Leisure Contracts,Lifelong Learning Activities,40194,Miscellaneous Expenses,5034,Music for Heritage Open Day Saturday 12th September 2015.,18/09/2015,106166,395.00,Revenue,Tapestry Of Music,17433
Chorley Borough Council,http://statistics.data.gov.uk/id/local-authority/30UE,Corporate Management,1008,Policy & Performance,Exhibitions & Special Events,40158,Miscellaneous Expenses,5034,Provision of six Creation Station arts and craft events as part of the summer activity promotion,02/09/2015,105770,740.00,Revenue,The Creation Station Merseyside,71522
Chorley Borough Council,http://statistics.data.gov.uk/id/local-authority/30UE,Unapportionable Central OHeads,1009,Policy & Performance,Miscellaneous Expenses,40200,Miscellaneous Expenses,5034,Performances at Chorley Flower Show,04/09/2015,105709,"1,295.00",Revenue,The Fairly Famous Family Limited,20457
Chorley Borough Council,http://statistics.data.gov.uk/id/local-authority/30UE,Unapportionable Central OHeads,1009,Policy & Performance,Publicity - Advertising,40157,Miscellaneous Expenses,5034,Chorley Live posters,02/09/2015,105684,255.25,Revenue,The Print Quarter,17987
Chorley Borough Council,http://statistics.data.gov.uk/id/local-authority/30UE,Democratic Represent and  Mgnt,1007,Streetscene & Leisure Contracts,Lifelong Learning Activities,40194,Miscellaneous Expenses,5034,Printing of Gruffalo trail sheets,23/09/2015,106185,256.70,Revenue,The Print Quarter,17987
Chorley Borough Council,http://statistics.data.gov.uk/id/local-authority/30UE,Unapportionable Central OHeads,1009,Policy & Performance,Publicity - Advertising,40157,Miscellaneous Expenses,5034,56 x A1 posters plus 56 x A3 posters for Chorley Live event,25/09/2015,106378,434.00,Revenue,The Print Quarter,17987
Chorley Borough Council,http://statistics.data.gov.uk/id/local-authority/30UE,Democratic Represent and  Mgnt,1007,Streetscene & Leisure Contracts,Exhibitions & Special Events,40158,Miscellaneous Expenses,5034,Theatre by numbers Heritage Open Day Event Sunday 13th September.,16/09/2015,105969,420.00,Revenue,Theatre by Numbers,69758
Chorley Borough Council,http://statistics.data.gov.uk/id/local-authority/30UE,Business Support,1095,Economic Development,Miscellaneous Expenses,40200,Miscellaneous Expenses,5034,Starting in Business grant,09/09/2015,105854,250.00,Revenue,NAME REDACTED,71723
Chorley Borough Council,http://statistics.data.gov.uk/id/local-authority/30UE,Business Support,1095,Economic Development,Miscellaneous Expenses,40200,Miscellaneous Expenses,5034,Starting in business payment grant,11/09/2015,105947,250.00,Revenue,NAME REDACTED,71748
Chorley Borough Council,http://statistics.data.gov.uk/id/local-authority/30UE,Service Management & Support,1009,Streetscene & Leisure Contracts,Grounds Maintenance Contractor,20043,Grounds Maintenance Costs,5013,Various sites - works completed,04/09/2015,105710,"3,040.00",Revenue,Treescape North West Ltd,17688
Chorley Borough Council,http://statistics.data.gov.uk/id/local-authority/30UE,Service Management & Support,1009,Streetscene & Leisure Contracts,Grounds Maintenance Contractor,20043,Grounds Maintenance Costs,5013,"Tree Work completed - Winchester Ave, Chorley",09/09/2015,105836,"1,240.00",Revenue,Treescape North West Ltd,17688
Chorley Borough Council,http://statistics.data.gov.uk/id/local-authority/30UE,Service Management & Support,1009,Shared Service Arrangement,Transport Operating Leases,30029,Contrct Hire & Operating Lease,5018,2x Swingo Compact Sweepers lease rental from 01/09/15 to 31/08/16,11/09/2015,105543,"26,026.19",Revenue,Triple Point Lease Partners,71646
Chorley Borough Council,http://statistics.data.gov.uk/id/local-authority/30UE,Unapportionable Central OHeads,1009,Governance,Furniture - Purchase,40012,"Equipment, Furniture & Materia",5023,One presentation lectern -  No 12 (in wood) Lugano Oak Melamine with cable management as shown on website. ,09/09/2015,105835,610.00,Revenue,Turning Leaf Furniture Specialists Ltd,71334
Chorley Borough Council,http://statistics.data.gov.uk/id/local-authority/30UE,Unapportionable Central OHeads,1009,Shared Service Arrangement,Miscellaneous Expenses,40200,Miscellaneous Expenses,5034,Level 1-5,25/09/2015,105563,"1,773.20",Revenue,UK Healthcare (BDHSC),17241
Chorley Borough Council,http://statistics.data.gov.uk/id/local-authority/30UE,Control Accounts,Control,Shared Service Arrangement,General Balances,100,Balance Sheet,Balance,Top ups,25/09/2015,105563,223.13,Revenue,UK Healthcare (BDHSC),17241
Chorley Borough Council,http://statistics.data.gov.uk/id/local-authority/30UE,Unapportionable Central OHeads,1009,HR & Org. Development,Miscellaneous Expenses,40200,Miscellaneous Expenses,5034,Level 1-5,18/09/2015,106211,"1,441.89",Revenue,UK Healthcare (BDHSC),17241
Chorley Borough Council,http://statistics.data.gov.uk/id/local-authority/30UE,Control Accounts,Control,HR & Org. Development,General Balances,100,Balance Sheet,Balance,Top ups,18/09/2015,106211,571.76,Revenue,UK Healthcare (BDHSC),17241
Chorley Borough Council,http://statistics.data.gov.uk/id/local-authority/30UE,Corporate Management,1008,Policy & Performance,Exhibitions & Special Events,40158,Miscellaneous Expenses,5034,Face painter for 6 week summer holidays at Market Walk,25/09/2015,106208,"1,050.00",Revenue,UK Media and Events Limited,71221
Chorley Borough Council,http://statistics.data.gov.uk/id/local-authority/30UE,Unapportionable Central OHeads,1009,"Customer, ICT & Transactional",Postages,40082,Communication and Computing,5028,imail eco,18/09/2015,106079,464.44,Revenue,UKMAIL Ltd (Mail),57758
Chorley Borough Council,http://statistics.data.gov.uk/id/local-authority/30UE,Unapportionable Central OHeads,1009,"Customer, ICT & Transactional",Postages,40082,Communication and Computing,5028,Imail Eco Business mono Letters - Hybrid,11/09/2015,106080,793.54,Revenue,UKMAIL Ltd (Mail),57758
Chorley Borough Council,http://statistics.data.gov.uk/id/local-authority/30UE,Unapportionable Central OHeads,1009,"Customer, ICT & Transactional",Postages,40082,Communication and Computing,5028,Imail Eco Business mono Letters - Hybrid,23/09/2015,106239,539.43,Revenue,UKMAIL Ltd (Mail),57758
Chorley Borough Council,http://statistics.data.gov.uk/id/local-authority/30UE,Unapportionable Central OHeads,1009,"Customer, ICT & Transactional",Postages,40082,Communication and Computing,5028,Imail Eco Business mono Letters - Hybrid,23/09/2015,106263,750.74,Revenue,UKMAIL Ltd (Mail),57758
Chorley Borough Council,http://statistics.data.gov.uk/id/local-authority/30UE,Economic Development,1096,Economic Development,Other Contributions,40145,Grants and Subscriptions,5031,For funding for business loans under the Chorley start up programme.,16/09/2015,106042,"1,000.00",Revenue,Unify Credit Union Ltd,55509
Chorley Borough Council,http://statistics.data.gov.uk/id/local-authority/30UE,Community Development,1097,Policy & Performance,Grants To Other Organisations,40127,Grants and Subscriptions,5031,To deliver credit union services in Chorley,16/09/2015,106141,"18,750.00",Revenue,Unify Credit Union Ltd,55509
Chorley Borough Council,http://statistics.data.gov.uk/id/local-authority/30UE,Control Accounts,Control,Shared Service Arrangement,General Balances,100,Balance Sheet,Balance,Salary Deds,16/09/2015,106163,"1,614.71",Revenue,Unify Credit Union Ltd,55509
Chorley Borough Council,http://statistics.data.gov.uk/id/local-authority/30UE,Democratic Represent and  Mgnt,1007,Governance,Water - Metered Supplies,20022,Water Services,5009,astley hall 1/1/15 to 31/3/15,11/09/2015,105868,761.36,Revenue,United Utilities Water Plc,17926
Chorley Borough Council,http://statistics.data.gov.uk/id/local-authority/30UE,Democratic Represent and  Mgnt,1007,Governance,Water - Metered Supplies,20022,Water Services,5009,astley hall 1/4/15 to 30/6/15,11/09/2015,105901,587.89,Revenue,United Utilities Water Plc,17926
Chorley Borough Council,http://statistics.data.gov.uk/id/local-authority/30UE,Unapportionable Central OHeads,1009,Governance,Water - Metered Supplies,20022,Water Services,5009,,18/09/2015,106272,740.64,Revenue,United Utilities Water Plc,17926
Chorley Borough Council,http://statistics.data.gov.uk/id/local-authority/30UE,Democratic Represent and  Mgnt,1007,Governance,Water - Metered Supplies,20022,Water Services,5009,,18/09/2015,106273,268.65,Revenue,United Utilities Water Plc,17926
Chorley Borough Council,http://statistics.data.gov.uk/id/local-authority/30UE,Corporate Management,1008,Governance,Water - Metered Supplies,20022,Water Services,5009,,25/09/2015,106404,331.09,Revenue,United Utilities Water Plc,17926
Chorley Borough Council,http://statistics.data.gov.uk/id/local-authority/30UE,Service Management & Support,1009,Streetscene & Leisure Contracts,Supplies - Workshop,40246,"Equipment, Furniture & Materia",5023,Recover vehicles and carry out repairs to electrical charging system on YJ13JYR as requested,16/09/2015,106159,585.73,Revenue,Vale Engineering Ltd,66000
Chorley Borough Council,http://statistics.data.gov.uk/id/local-authority/30UE,Business Support,1095,Economic Development,Grants To Other Organisations,40127,Grants and Subscriptions,5031,Business rate subsidy,25/09/2015,106206,273.00,Revenue,Victoria Garside,65501
Chorley Borough Council,http://statistics.data.gov.uk/id/local-authority/30UE,Corporate Management,1008,"Customer, ICT & Transactional","Hackney Badges, Plates Etc.",40023,"Equipment, Furniture & Materia",5023,Chorley PHV Size 4F unique V5 (04306-6069) 1 pack of 50,09/09/2015,105764,92.58,Revenue,VIP-SYSTEM LIMITED,69902
Chorley Borough Council,http://statistics.data.gov.uk/id/local-authority/30UE,Corporate Management,1008,"Customer, ICT & Transactional","Hackney Badges, Plates Etc.",40023,"Equipment, Furniture & Materia",5023,Chorley HCV Size 2 x 1E Style 3_2 3_2 (082051-6070) 1 pack of 50,09/09/2015,105764,21.68,Revenue,VIP-SYSTEM LIMITED,69902
Chorley Borough Council,http://statistics.data.gov.uk/id/local-authority/30UE,Corporate Management,1008,"Customer, ICT & Transactional","Hackney Badges, Plates Etc.",40023,"Equipment, Furniture & Materia",5023,Chorley HCV A3 Oval Unique (070112-6073) 1 pack of 50,09/09/2015,105764,223.82,Revenue,VIP-SYSTEM LIMITED,69902
Chorley Borough Council,http://statistics.data.gov.uk/id/local-authority/30UE,Corporate Management,1008,"Customer, ICT & Transactional","Hackney Badges, Plates Etc.",40023,"Equipment, Furniture & Materia",5023,Delivery,09/09/2015,105764,9.89,Revenue,VIP-SYSTEM LIMITED,69902
Chorley Borough Council,http://statistics.data.gov.uk/id/local-authority/30UE,Central Support Services,1009,"Customer, ICT & Transactional",Internet Charges,40104,Communication and Computing,5028,telephony charges,23/09/2015,105745,"1,217.11",Revenue,Virgin Media Payments Ltd,17632
Chorley Borough Council,http://statistics.data.gov.uk/id/local-authority/30UE,Central Support Services,1009,Health Environment & Neighbourhoods,Telephones - Rentals,40083,Communication and Computing,5028,,11/09/2015,105778,"2,640.00",Revenue,Virgin Media Payments Ltd,17632
Chorley Borough Council,http://statistics.data.gov.uk/id/local-authority/30UE,Business Support,1095,Economic Development,Miscellaneous Expenses,40200,Miscellaneous Expenses,5034,Silver Pocket Mirror for EVAs,16/09/2015,106116,"1,044.16",Revenue,WeBrand4You,68716
Chorley Borough Council,http://statistics.data.gov.uk/id/local-authority/30UE,Unapportionable Central OHeads,1009,Chief Executives Office,Postages,40082,Communication and Computing,5028,Whistl,04/09/2015,105729,423.68,Revenue,Whistl North Limited,67256
Chorley Borough Council,http://statistics.data.gov.uk/id/local-authority/30UE,Unapportionable Central OHeads,1009,Chief Executives Office,Postages,40082,Communication and Computing,5028,Weekly mail collection Week 13 - Week 26,11/09/2015,106094,280.46,Revenue,Whistl North Limited,67256
Chorley Borough Council,http://statistics.data.gov.uk/id/local-authority/30UE,Unapportionable Central OHeads,1009,Chief Executives Office,Postages,40082,Communication and Computing,5028,Weekly mail collection Week 13 - Week 26,18/09/2015,106209,538.01,Revenue,Whistl North Limited,67256
Chorley Borough Council,http://statistics.data.gov.uk/id/local-authority/30UE,Unapportionable Central OHeads,1009,Chief Executives Office,Postages,40082,Communication and Computing,5028,Weekly mail collection Week 13 - Week 26,25/09/2015,106287,"1,043.25",Revenue,Whistl North Limited,67256
Chorley Borough Council,http://statistics.data.gov.uk/id/local-authority/30UE,Unapportionable Central OHeads,1009,Chief Executives Office,Postages,40082,Communication and Computing,5028,Weekly mail collection Week 13 - Week 26,25/09/2015,106370,422.85,Revenue,Whistl North Limited,67256
Chorley Borough Council,http://statistics.data.gov.uk/id/local-authority/30UE,Democratic Represent and  Mgnt,1007,Streetscene & Leisure Contracts,Consultants` Fees,40077,Services,5027,For curatorial consultancy services at Astley Hall in August 2015: 3 days  on site at Astley Hall @ 116.66 per day,18/09/2015,106257,349.98,Revenue,Whittle and Draper Fine Art,52271
Chorley Borough Council,http://statistics.data.gov.uk/id/local-authority/30UE,Capital,Capital,Streetscene & Leisure Contracts,Main Contractor,3007,Capital Expenditure,Capital,Installation of play area and multi use games area and associated works in accordance with order reference 321929.,23/09/2015,106073,"133,010.21",Capital,Wicksteed Leisure Ltd,18007
Chorley Borough Council,http://statistics.data.gov.uk/id/local-authority/30UE,Business Support,1095,Economic Development,Grants To Other Organisations,40127,Grants and Subscriptions,5031,Business rate subsidy,25/09/2015,106205,"1,703.00",Revenue,Wild Orchid,67522
Chorley Borough Council,http://statistics.data.gov.uk/id/local-authority/30UE,Capital,Capital,Governance,Purchase Money,3027,Capital Expenditure,Capital,Deposit for purchasing land,23/09/2015,106326,"150,000.00",Capital,Workspace Properties Ltd,72074
Chorley Borough Council,http://statistics.data.gov.uk/id/local-authority/30UE,Unapportionable Central OHeads,1009,HR & Org. Development,Service Fees,40056,Services,5027,occupational health service,30/09/2015,106421,338.90,Revenue,WWL NHS FT,66700
Chorley Borough Council,http://statistics.data.gov.uk/id/local-authority/30UE,Service Management & Support,1009,Streetscene & Leisure Contracts,Vehicle Maintenance,30045,Direct Transport Costs,5016,Supply full tracker driver ID kits as per price from Louise,30/09/2015,106332,300.00,Revenue,YouTrack Ltd,53109
Chorley Borough Council,http://statistics.data.gov.uk/id/local-authority/30UE,Central Support Services,1009,"Customer, ICT & Transactional",Computer Software-Maintenance,40107,Communication and Computing,5028,Annual support and maintenance of the Zipporah Children`s activity booking system 1st August 2015 to 31st July 2016 ,09/09/2015,105956,"3,193.11",Revenue,Zipporah LTD,21786
